{"text_format":"1","workbook":"xlsx","n_sheets":8,"sheets":["Instructivo","DEMANDA ANUAL","VOLUMEN DE QUEJAS","COSTO ADMINISTRACIÓN PÚBLICA","RESUMEN DE COSTOS AP","TIEMPO DE RESPUESTA","CANAL ATENCIÓN","RESUMEN"],"not_rendered":{"charts":0,"images":7,"macros":1,"external_links":0,"defined_names":6,"comments":5,"pivot_tables":0},"unopened":[],"bounds":{"document_bytes":16777216,"sheet_cells":100000,"rows_first":2000,"rows_last":500,"rows_between":2000,"halvings":0,"cell_chars":16384,"cell_head_chars":4096},"cells_cut":0,"cells_raw":0,"read":"whole","date_system":"1900"}

{"sheet":"Instructivo","index":0,"n_rows":70,"n_cols":1,"rows_kept":70,"cut":false,"hidden":false,"merged":[]}
["CRITERIO DE PRIORIZACIÓN DE TRÁMITES ADMINISTRATIVOS"]
["Instructivo"]
["Consideraciones generales"]
[]
["En las hojas “COSTO DE ADMINISTRACIÓN PÚBLICA”y “RESUMEN”  para añadir más trámites y que apliquen las fórmulas, se deberá seleccionar la primera fila y copiarla una por cada trámite de la entidad"]
[]
["Todas las hojas tienen columnas de color celeste, en las cuales NO deben ingresar valores ya que contienen fórmulas."]
["Para la carga en GOB.EC. La institución debe recordar que el peso máximo del archivo es de 2 MB."]
["Esquema de puntuación"]
["Para priorizar un trámite, se realizará un análisis de criterios básicos y adicionales basado en información que disponen las instituciones sujetas a esta norma técnica. Cada criterio será puntuado según los lineamientos presentes en esta norma."]
["a) Demanda Anual"]
["Considerará el volumen o frecuencia de las solicitudes que ingresan al año a cada institución para la gestión de un trámite en particular."]
["La identificación del volumen anual de los trámites se realizará a través de sus registros de transacciones y/o el número de visitas de consulta de información realizadas a través de páginas web institucionales."]
["Para realizar el registro realice lo siguiente:"]
["1.- Seleccione la hoja DEMANDA ANUAL"]
["2.- Ingrese los trámites de la institución registrando el identificador y nombre en las columnas respectivas.  "]
["3.- Para cada trámite debe especificar en la columna DEMANDA ANUAL el volumen o frecuencia anual, de acuerdo a lo mencionado anteriormente."]
["4.- Una vez terminado el llenado solicitado presione el botón PUNTUACIÓN, se ordenara de menor a mayor. "]
["5.- Usted visualizará el ordenamiento de los trámites ingresados de acuerdo al número de  volumen o frecuencia anual."]
["6.- Así mismo, usted visualizará el puntaje obtenido en la columna PUNTUACIÓN de acuerdo al grupo obtenido por cada trámite de acuerdo al número de volumen o frecuencia anual cosiderando lo siguiente: ** Primer grupo (trámites con menor demanda no incluye los trámites con demanda 0 ) = 3\n** Segundo grupo (trámites con demanda intermedia) = 6\n** Tercer grupo (trámites con mayor demanda) = 10"]
["Cada vez que requiera actualizar el puntaje presionando el botón puntuación, debe verificar que la celda de la columna puntaje se encuentren vacías, es decir, se debe borrar cualquier valor de puntaje obtenido previamente."]
["b) Volumen de quejas asociadas a un trámite: "]
["Considerará la cantidad de quejas recibidas en relación a un trámite durante un año. Estas quejas deberán estar documentadas en medios físicos y/o digitales."]
["Para determinar la puntuación, se colocará en una tabla todos los trámites con sus correspondientes quejas ordenándose de menor a mayor. Se dividirá en 2 partes en los que cada grupo contenga la misma cantidad de trámites."]
["Para realizar el registro realice lo siguiente:"]
["1.- Seleccione la hoja VOLUMEN DE QUEJAS"]
["2.- Ingrese los trámites de la institución registrando el identificador y nombre en las columnas respectivas.  Si usted requiere de acuerdo al número de trámites copie filas adicionales que estén dentro del cuadro"]
["3.- Para cada trámite debe especificar en la columna VOLUMEN QUEJAS el número de quejas anual, de acuerdo a lo mencionado anteriormente."]
["4.- Una vez terminado el llenado solicitado presione el botón PUNTUACIÓN."]
["5.- Usted visualizará el ordenamiento de los trámites ingresados de acuerdo al número de  volumen o frecuencia anual."]
["6.- Así mismo, usted visualizará el puntaje obtenido en la columna PUNTUACIÓN de acuerdo al grupo obtenido por cada trámite de acuerdo al número de volumen o frecuencia anual cosiderando lo siguiente: La puntuación se basará en los siguientes grupos:\n** Primer grupo (trámites con menor cantidad de quejas, no incluye los trámites con queja 0 ) = 4\n** Segundo grupo (trámites con mayor porcentaje de quejas) = 10"]
["El valor del volumen de quejas no debe ser superior al valor del volumen de la demana, no le permitirá registrar un valor."]
["c) Costo para la administración pública: "]
["En cada trámite, basado en un caso estándar, se deberá estimar el costo incurrido en el costo de personal y recursos necesarios para su atención desde que el administrado entregó todos los requisitos hasta que la institución entregue el producto, respuesta o servicio requerido en el trámite. Se considerará:"]
["• Costo de personal:"]
["Costo del personal para atender el trámite, se excluyen actividades realizadas automáticamente o que dependen del administrado. El tiempo deberá considerar únicamente el tiempo efectivo de trabajo del personal, no debe considerar el tiempo de espera o de movimiento."]
["• Costo de recursos:"]
["Se deberá considerar el costo directo en el que la institución debe incurrir para atender un trámite. Se debe considerar los insumos o materia prima necesaria u cualquier otro que la institución considere pertinente."]
["Para realizar el registro realice lo siguiente:"]
["1.- Seleccione la hoja COSTO ADMINISTRACIÓN PÚBLICA"]
["2.- Ingrese los trámites de la institución registrando el identificador y nombre en las columnas respectivas.  Si usted requiere de acuerdo al número de trámites copie filas adicionales que estén dentro del cuadro"]
["3.- Para calcular el tiempo de las actividades, utilizar la hoja AUXILIAR COSTO ADMINISTRACIÓN donde deberá listar todas las actividades que realiza la institución en un caso estándar y asignar el tiempo mínimo que toma cada actvidad (en horas). El tiempo total de las actividades, deberá ingresar en la correspondiente celda de la hoja COSTO ADMINISTRACIÓN PÚBLICA"]
["4.- En función de la información registrada en el paso 3, la matriz entregará el costo del personal"]
["5.- Completar la columna \"Costo recursos\", en la cual ingresará el costo directo en el que incurre la institución para entregar el trámite. En este valor se considerarán los valores correspondientes a insumos y/o materia prima mínimos que se invierten por cada trámite (no se considera mano de obra)"]
["6.- La columna \"Costo para la adm. pública\" mostrará el costto de este criterio para cada trámite"]
["7,- Para que la fórmula funcione debe arrastrar hacia abajo al último de los támites ingresados, no copiar"]
["7.- Una vez que disponga del Costo para la administración pública, presionar el botón \"GENERAR\"."]
["8. Visualizar la hoja “RESUMEN DE COSTO AP” en la que va a encontrar copiada las celdas necesarias para el ordenamiento y puntuación de las mismas al presionar el botón “PUNTUACIÓN”"]
[]
["d) Tiempo de respuesta: "]
["Considerará los tiempos que a las instituciones les toma dar respuesta a un trámite desde que reciben la solicitud del administrado hasta la finalización del mismo. Para la definición del tiempo se considerará un caso estándar."]
["Para determinar la puntuación, se colocará en una tabla todos los trámites con el tiempo de respuesta, ordenándose de menor a mayor. Se dividirá en 4 grupos, en los que cada uno contenga la misma cantidad de trámites."]
["Para realizar el registro realice lo siguiente:"]
["1.- Seleccione la hoja TIEMPO DE RESPUESTA"]
["2.- Ingrese los trámites de la institución registrando el identificador y nombre en las columnas respectivas.  Si usted requiere de acuerdo al número de trámites copie filas adicionales que estén dentro del cuadro"]
["3.- Para cada trámite debe especificar en la columna TIEMPO RESPUESTA el tiempo, de acuerdo a lo mencionado anteriormente."]
["4.- Una vez terminado el llenado solicitado presione el botón PUNTUACIÓN."]
["5.- Usted visualizará el ordenamiento de los trámites ingresados de acuerdo al número de  volumen o frecuencia anual."]
["6.- Así mismo, usted visualizará el puntaje obtenido en la columna PUNTUACIÓN de acuerdo al grupo obtenido por cada trámite de acuerdo al número de volumen o frecuencia anual cosiderando lo siguiente:  La puntuación considera lo siguiente:\n** Primer grupo (menor o igual a 40 horas laboralres) = 0\n** Segundo grupo mayor  40 horas laboralres) = 30"]
["e) Canal de atención: "]
["Considerará los canales de atención a través de los cuales el administrado puede iniciar el trámite."]
["Para realizar el registro realice lo siguiente:"]
["1.- Seleccione la hoja CANAL ATENCIÓN"]
["2.- Ingrese los trámites de la institución registrando el identificador y nombre en las columnas respectivas.  Si usted requiere de acuerdo al número de trámites copie filas adicionales que estén dentro del cuadro"]
["3.- Para cada trámite debe seleccionar el canal de atención del trámite en la columna CANAL ATENCIÓN, que pueden ser: \nEl trámite se puede completar totalmente en línea: Se considera trámite totalmente en línea cuando el administrado no requiere realizar ninguna interacción presencial con la institución = 0\nEl trámite no se puede completar totalmente en línea: Se considera este caso, cuando el trámite incluye al menos una actividad, incluido mecanismos de pago, en la que el administrado deba acudir presencialmente a la institución, para la realización de dicho trámite. Los trámites presenciales se consideran dentro de esta categoría = 10"]
["4.- De acuerdo a la selección usted obtendrá la puntuación del trámite que se visualizará en la columna PUNTUACIÓN."]
[]
["f) Resumen"]
["En esta hoja deberá consolidar todas las puntuaciones obtenidas para cada trámite en los criterios a) hasta e). Adicionalmente deberá analizar los criterios adicionales que dispone la norma técnica, para estos últimos solamente deberá seleccionar en la celda correspondiente y la matriz asignará la puntuación adicional. Los criterios que deberá considerar son:\n- NECESIDADES CIUDADANAS: Si la institución ha implementado mecanismos para identificar necesidades ciudadanas respecto al trámite, seleccionar \"SI\", caso contrario, seleccionar \"NO\"\n- SUSCEPTIBILIDAD A CORRUPCIÓN: Si la institución dispone de información documentada sobre presuntos actos de corrupción, seleccionar \"SI\", caso contrario, seleccionar \"NO\"\n- VOLUMEN DE DEVOLUCIONES: Si la institución posee documentación sobre devoluciones del trámite en una cantidad significativa, seleccionar \"SI\", caso contrario, seleccionar \"NO\"\nPara que funcione la lista depelgable debe arrastrar la lista y la puntuación hacia abajo al último de los támites ingresados, no copiar"]
["En la columna puntaje total se realizará la sumatoria de los valores de los criterios básicos y adicionales. Este valor deberá registrarse en la plataforma GOB.EC"]

{"sheet":"DEMANDA ANUAL","index":1,"n_rows":134,"n_cols":4,"rows_kept":134,"cut":false,"hidden":false,"merged":[[0,0,0,3],[1,0,1,3]]}
["PRIORIZACIÓN DE TRÁMITES ADMINISTRATIVOS"]
["DEMANDA ANUAL"]
[]
["IDENTIFICADOR","TRÁMITE","DEMANDA ANUAL","PUNTAJE"]
["MT-021-01-01","Aprobación de planos para la construcción, habilitación de fábricas y/o campamentos",0,0]
["MT-048-01-05 ","Suscripción de actas transaccionales para instituciones privadas",0,0]
["MT-045-03-04","Aprobación de disolución de organizaciones sociales, fundaciones y microempresas asociativas",1,3]
["MT-045-01-02 ","Registro de la marginación de organizaciones laborales",1,3]
["\n MT-047-01-02 ","Resolución del pliego de peticiones con sentencia de segunda instancia",2,3]
["MT-045-02-07 ","Aprobación de disolución voluntaria de personería jurídica de organizaciones artesanales",4,3]
["MT-053-02-01","Legalización de documentos FEDESOMEC previo al inicio de cursos",4,3]
["MT-045-02-01 ","Registro de ingreso, retiro o exclusión de socios de las organizaciones artesanales",6,3]
["MT-046-01-02","Rehabilitación de personas con impedimento laboral en el servicio público a causa de retiro con compensación por retiro voluntario, venta de renuncia o figuras similares",6,3]
["MRL-015-01-03 ","Refrendación de títulos nuevos y canje de la Federación Ecuatoriana de Operadores y Mecánicos de Equipo Caminero (FEDESOMEC)",12,3]
["\n MT-048-03-02","Resolución de reclamación colectiva presentada por instituciones privadas por la falta de negociación del contrato colectivo",13,3]
["MT-046-01-08 ","Rehabilitación de personas con impedimento laboral en el servicio público a causa de interdicción judicial",17,3]
["MT-046-01-06","Rehabilitación de personas con impedimento laboral en el servicio público a causa de compra de renuncia con indemnización.",21,3]
["MT-046-01-01 ","Rehabilitación de impedidos para laborar en el servicio público por indemnización por supresión de puestos",30,3]
["MT-045-02-04 ","Registro de directivas de las organizaciones artesanales",32,3]
["MT-048-01-06 ","Suscripción de actas transaccionales para instituciones públicas para trabajadores bajo Código del Trabajo",33,3]
["MT-016-02-02","Aprobación de extensión de horarios de trabajo (Suplementarias y Extraordinarias)",34,3]
["MT-045-01-07","Aprobación de reformas a estatutos de organizaciones laborales",37,3]
["MT-045-03-05","Aprobación de reformas al estatuto de organizaciones sociales, fundaciones y microempresas asociativas",39,3]
["MT-048-03-01","Resolución de reclamación colectiva presentada por instituciones públicas por la falta de negociación del contrato colectivo bajo Código de Trabajo",41,3]
["MRL-015-01-02","Refrendación de títulos nuevos y canje de Centros de Formación Artesanal y Organizaciones Artesanales",42,3]
["MT-045-01-03","Registro de inclusión y/o exclusión de socios de organizaciones laborales",42,3]
["MT-045-02-05 ","Aprobación de estatutos y concesión de personería jurídica de organizaciones artesanales",44,3]
["MT-045-01-08 ","Aprobación de estatutos y personería jurídica en organizaciones laborales",44,3]
["MT-048-01-03 ","Suscripción de contratos colectivos para instituciones privadas",45,3]
["MT-045-02-06 ","Aprobación de reformas total y parcial de estatutos de organizaciones artesanales",46,3]
["MT-055-01-01 ","Aprobación de unificación de utilidades para empleadores del sector privado",56,3]
["MT-053-01-06 ","Legalización de documentos previo a la titulación artesanal bajo la modalidad propios derechos y convalidación profesional",61,6]
["MT-046-01-03 ","Rehabilitación de impedidos para laborar en el servicio público por destitución",68,6]
["MT-053-01-05 ","Legalización de documentos previo a la titulación artesanal bajo la modalidad practica profesional",104,6]
["MT-048-01-04 ","Suscripción de contrato colectivo para instituciones públicas para trabajadores bajo Código del Trabajo",139,6]
["MT-045-03-02","Registro de inclusión y/o exclusión de miembros en organizaciones sociales, fundaciones y microempresas asociativas",207,6]
["MT-045-03-06","Aprobación del estatuto y otorgamiento de la personalidad jurídica de organizaciones sociales, fundaciones y microempresas asociativas",217,6]
["MT-001-08-01","Emisión de copias certificadas de actos administrativos y normativos emitidos por el Ministerio del Trabajo",325,6]
["MT-045-01-01 ","Registro de directivas de organizaciones laborales",357,6]
["MT-016-02-01 ","Aprobación de horarios especiales de trabajo de empresas o instituciones bajo Código del Trabajo",427,6]
["MRL-008-02-01 ","Terminación de relación laboral a petición del empleador con visto bueno con suspensión de relación laboral",699,6]
["MT-047-01-01 ","Resolución del pliego de peticiones con sentencia de primera instancia",733,6]
["MT-045-03-01 ","Registro de directivas para organizaciones sociales, fundaciones y microempresas asociativas",771,6]
["MRL-005-01-01","Audiencia de diálogo social en la solución de conflictos colectivos",863,6]
["MT-034-10-01 ","Cálculo del valor correspondiente a la jubilación patronal para trabajadores de código de trabajo en el sector público",1009,6]
["MRL-008-02-03 ","Terminación de relación laboral a petición del empleado con visto bueno",1056,6]
["\n MT-049-04-02","Asistencia en el proceso integral de preselección de personal para instituciones públicas y empresas privadas a través del portal Red Socio Empleo",1145,6]
["MRL-008-02-02 ","Terminación de relación laboral a petición del empleador con visto bueno sin suspensión de relación laboral",1990,6]
["MT-040-01-01","Autorización laboral para extranjeros para trabajar en el sector público.",2205,6]
["MT-030-03-01 ","Atención de denuncias laborables en el sector público",2819,6]
["MT-034-10-02 ","Cálculo del valor correspondiente a la jubilación patronal para trabajadores del servicio privado",3026,6]
["MT-005-02-01 ","Audiencia de mediación voluntaria para la solución de conflictos individuales de trabajo",3119,6]
["MRL-012-01-01 ","Aprobación de reglamentos internos de trabajo",5104,6]
["MT-054-01-01 ","Recuperación de claves y modificación de correo electrónico en el Sistema Único de Trabajo",6635,6]
["MT-021-04-02 ","Registro de la Planificación de Capacitación del programa de Prevención de Riesgos Psicosociales",8340,6]
["MT-021-01-03 ","Registro de Informe anual de actividades del comité paritario",9189,6]
["MT-021-01-04 ","Aprobación de reglamentos de higiene y seguridad en el trabajo",10269,10]
["MT-046-01-05","Rehabilitación de personas con impedimento laboral en el servicio público a causa de inhabilidad especial por mora.",17484,10]
["MT-021-03-02 ","Registro de Promoción y Prevención de Salud en el Trabajo",17489,10]
["MT-049-04-03 ","Asistencia en la preselección de personal para instituciones públicas y empresas privadas a través del portal Red Socio Empleo mediante el envío de hojas de vida",18208,10]
["MT-021-04-01","Registro de Prevención de Amenazas Naturales y Riesgos Antrópicos",18411,10]
["N/A","Acceso a la Información Pública del Ministerio de Trabajo",18614,10]
["MT-049-04-01","Publicación de ofertas laborales en el portal Red Socio Empleo a través de las cuentas de los empleadores",21934,10]
["MT-044-04-01 ","Registro del pago de multas por sanciones",23965,10]
["MT-021-01-06 ","Registro de programas de prevención de uso y consumo de drogas en espacios laborales y programa de prevención de riesgo psicosocial",26466,10]
["MT-030-03-02 ","Atención de denuncias laborales en el sector privado",29591,10]
["MT-021-01-02 ","Registro de organismos paritarios y sus renovaciones",30352,10]
["MT-021-01-05 ","Registro de la declaración de los riesgos laborales y su plan de acción",33418,10]
["\n MT-021-02-03 ","Registro de trabajadores capacitados en materia de seguridad y salud en el trabajo.",34093,10]
["MRL-001-01-08","Emisión de oficio de validación de no tener impedimento para ejercer cargo público a la fecha",36750,10]
["MT-021-02-02","Registro de capacitaciones realizadas en materia de seguridad y salud en el trabajo",42591,10]
["MT-044-03-11","Registro del pago de decimotercera y decimocuarta remuneración para el servicio doméstico",51650,10]
["MT-021-02-01 ","Registro de la planificación de capacitaciones en materia de seguridad y salud en el trabajo",62368,10]
["MT-021-03-01 ","Registro de Vigilancia de la Salud",64992,10]
["MT-044-03-10 ","Registro del pago de Participación de Utilidades",69017,10]
["MRL-001-01-03 ","Emisión de certificado de no tener impedimento para ejercer cargo público para extranjeros no residentes",76537,10]
["MT-044-03-12","Registro del pago de decimocuarta remuneración",135939,10]
["MRL-001-01-09 ","Emisión de certificado de relación de dependencia laboral con el sector público",140913,10]
["MT-044-03-06","Registro del pago de decimotercera remuneración",143326,10]
["MT-044-05-01 ","Registro de datos de trabajador para la vinculación laboral",478648,10]
["MT-044-05-02 ","Registro de actas de finiquito",726991,10]
["MRL-001-01-01","Emisión de certificado de no tener impedimento para ejercer cargo público para ecuatorianos y extranjeros residentes",1129606,10]
["SETEC-014-04-04","Ampliación por incremento de instructores y/o cambio de coordiador pedagógico bajo las mismas áreas, especialidades, cursos o perfiles",0,0]
["SETEC-016-01-04","Emisión de credenciales de capacitador independiente",0,0]
["SETEC-014-05-09","Solicitud de la renovación de la calificación de Instituciones de Educación Superior como Operadores de Capacitación por capacitación continua y competencias laborales",0,0]
["SETEC-015-01-08","Solicitud de modificación al reconocimiento de organismos evaluadores de la conformidad para brindar servicios de certificación de personas",0,0]
["SETEC-014-05-08","Solicitud de renovación de la calificación de Instituciones de Educación Superior como Operadores de Capacitación por competencias laborales",0,0]
["SETEC-014-05-04","Solicitud de renovación de la calificación de Instituciones Públicas como Operadores de Capacitación Continua",0,0]
["SETEC-014-05-05","Solicitud de renovación de la calificación de Instituciones Públicas como Operadores de Capacitación por competencias laborales",0,0]
["SETEC-014-05-06","Solicitud de renovación de la calificación deInstituciones Públicas como Operadores de Capacitación por capacitación continua y competencias laborales",0,0]
["SETEC-015-01-01","Reconocimiento de personas naturales como organismos evaluadores de la conformidad para brindar servicios de certificación de personas",2,3]
["SETEC-014-03-03","Solicitud de modificación de la calificación de Instituciones de Educación Superior como Operadores de Capacitación",2,3]
["SETEC-014-05-07","Solicitud de renovación de la calificación de Instituciones de Educación Superior como Operadores de Capacitación como Operadores de Capacitación Continua",2,3]
["SETEC-014-04-02","Ampliación por nuevos cursos e instructores por competencias laborales",4,3]
["SETEC-014-02-08","Calificación de Instituciones de Educación Superior como Operadores de Capacitación por competencias laborales",4,3]
["SETEC-014-02-05","Calificación de Instituciones Públicas como Operadores de Capacitación por competencias laborales",4,3]
["SETEC-015-01-06","Renovación al reconocimiento de organismos evaluadores de la conformidad de Instituciones de Educación Superior para brindar servicios de certificación de personas",4,3]
["SETEC-015-01-04","Renovación al reconocimiento de organismos evaluadores de la conformidad de personas naturales para brindar servicios de certificación de personas",4,3]
["SETEC-014-03-02","Solicitud de modificación de la calificación de Instituciones Públicas como Operadores de Capacitación",4,3]
["SETEC-014-05-02","Solicitud de renovación de la calificación de Personas Naturales, Personas Jurídicas y Empresas Públicas como Operadores de Capacitación por competencias laborales",4,3]
["SETEC-015-01-02","Reconocimiento de organismos evaluadores de la conformidad de Instituciones de Educación Superior para brindar servicios de certificación de personas",6,3]
["SETEC-017-01-02","Solicitud de auditoría al cumplimiento de los estándares de calificación",6,3]
["SETEC-017-02-02","Solicitud de auditoría al cumplimiento del sistema de gestión de certificación de personas",6,3]
["SETEC-017-01-03","Quejas y sugerencias sobre la prestacción de servicios de capacitación y certificación por parte de terceros",8,3]
["SETEC-014-02-02","Calificación de Personas Naturales, Personas Jurídicas y Empresas Públicas como Operadores de Capacitación por competencias laborales",12,6]
["SETEC-014-02-04","Calificación de Instituciones Públicas como Operadores de Capacitación Continua",18,6]
["SETEC-010-01-02","Elaborar o actualizar perfiles ocupacionales para capacitación y certificación de personas por competancias laborales",22,6]
["SETEC-015-01-03","Reconocimiento de organismos evaluadores de la conformidad de personas jurídicas para brindar servicios de certificación de personas",26,6]
["SETEC-014-03-01","Solicitud de modificación de la calificación de Personas Naturales, Personas Jurídicas y Empresas Públicas como Operadores de Capacitación",26,6]
["SETEC-015-01-05","Renovación al reconocimiento de organismos evaluadores de la conformidad de personas jurídicas para brindar servicios de certificación de personas",28,6]
["SETEC-014-02-07","Calificación de Instituciones de Educación Superior como Operadores de Capacitación Continua",30,6]
["SETEC-014-05-01","Solicitud de renovación de la calificación de Personas Naturales, Personas Jurídicas y Empresas Públicas como Operadores de Capacitación de Capacitación Continua",30,6]
["SETEC-014-02-09","Calificación de Instituciones de Educación Superior como Operadores de Capacitación por capacitación continua y competencias laborales",32,6]
["SETEC-016-01-02","Renovación de la calificación como capacitador independiente",34,6]
["SETEC-014-05-03","Solicitud de renovación de la calificación de Personas Naturales, Personas Jurídicas y Empresas Públicas como Operadores de Capacitación por capacitación continua y competencias laborales",34,6]
["SETEC-014-02-06","Calificación de Instituciones Públicas como Operadores de Capacitación por capacitación continua y competencias laborales",40,6]
["SETEC-017-03-02","Quejas y sugerencias sobre el mal uso de marca SETEC por parte de terceros",40,6]
["SETEC-010-02-01","Elaboración de esquemas para la certificación de personas bajo competencias laborales",42,6]
["SETEC-010-03-01","Elaborar instrumentos para la certificación de personas bajo competencias laborales",42,6]
["SETEC-014-04-03","Ampliación por nuevos cursos e instructores por capacitación continua y competencias laborales",50,10]
["SETEC-017-02-01","Solicitud de asesoramiento técnico para el proceso de auditoría al sistema de gestión de certificación de personas",60,10]
["SETEC-017-01-01","Solicitud de asesoramiento técnico para el proceso de auditoría al cumplimiento de los estándares de calificación",64,10]
["SETEC-014-04-01","Ampliación por nuevos cursos e instructores por capacitación continua",74,10]
["SETEC-012-01-01","Asesoramiento metodológico en la elaboración de diseños y estructuras curriculares",124,10]
["SETEC-016-01-03","Ampliación de la calificación como capacitador independiente",132,10]
["SETEC-015-01-09","Asistencia técnica en el proceso de reconocimiento de organismos certificadores de personas",142,10]
["SETEC-015-01-07","Ampliación al reconocimiento de organismos evaluadores de la conformidad para brindar servicios de certificación de personas",154,10]
["SETEC-014-02-01","Calificación de Personas Naturales, Personas Jurídicas y Empresas Públicas como Operadores de Capacitación de Capacitación Continua",164,10]
["SETEC-014-02-03","Calificación de Personas Naturales, Personas Jurídicas y Empresas Públicas como Operadores de Capacitación continua y competencias laborales",174,10]
["SETEC-016-01-01","Calificación como capacitador independiente",422,10]
["SETEC-017-03-01","Solicitud de aprobación de productos comunicacionales",1120,10]
["SETEC-016-01-05","Asistencia técnica en el proceso de calificación como capacitador independiente",3680,10]
["SETEC-017-03-04","Solicitud de sellado de certificados emitidos por los operadores de capacitación de capacitación y organismos evaluadores de la conformidad",99136,10]
["SETEC-009-02-01","Consulta de análisis y estudios sobre capacitación y certificación de personas",755848,10]

{"sheet":"VOLUMEN DE QUEJAS","index":2,"n_rows":134,"n_cols":6,"rows_kept":134,"cut":false,"hidden":false,"merged":[[0,0,0,5],[1,0,1,5]]}
["PRIORIZACIÓN DE TRÁMITES ADMINISTRATIVOS"]
["VOLUMEN DE QUEJAS"]
[]
["IDENTIFICADOR","TRÁMITE","VOLUMEN DEMANDA","VOLUMEN DE QUEJAS","PORCENTAJE","PUNTUACIÓN"]
["MT-021-01-01","Aprobación de planos para la construcción, habilitación de fábricas y/o campamentos",0,0,0,0]
["MT-048-01-05 ","Suscripción de actas transaccionales para instituciones privadas",0,0,0,0]
["MT-045-03-04","Aprobación de disolución de organizaciones sociales, fundaciones y microempresas asociativas",1,0,0,0]
["MT-045-01-02 ","Registro de la marginación de organizaciones laborales",1,0,0,0]
["\n MT-047-01-02 ","Resolución del pliego de peticiones con sentencia de segunda instancia",2,0,0,0]
["MT-045-02-07 ","Aprobación de disolución voluntaria de personería jurídica de organizaciones artesanales",4,0,0,0]
["MT-053-02-01","Legalización de documentos FEDESOMEC previo al inicio de cursos",4,0,0,0]
["MT-045-02-01 ","Registro de ingreso, retiro o exclusión de socios de las organizaciones artesanales",6,0,0,0]
["MT-046-01-02","Rehabilitación de personas con impedimento laboral en el servicio público a causa de retiro con compensación por retiro voluntario, venta de renuncia o figuras similares",6,0,0,0]
["MRL-015-01-03 ","Refrendación de títulos nuevos y canje de la Federación Ecuatoriana de Operadores y Mecánicos de Equipo Caminero (FEDESOMEC)",12,0,0,0]
["\n MT-048-03-02","Resolución de reclamación colectiva presentada por instituciones privadas por la falta de negociación del contrato colectivo",13,0,0,0]
["MT-046-01-08 ","Rehabilitación de personas con impedimento laboral en el servicio público a causa de interdicción judicial",17,0,0,0]
["MT-046-01-06","Rehabilitación de personas con impedimento laboral en el servicio público a causa de compra de renuncia con indemnización.",21,0,0,0]
["MT-046-01-01 ","Rehabilitación de impedidos para laborar en el servicio público por indemnización por supresión de puestos",30,0,0,0]
["MT-045-02-04 ","Registro de directivas de las organizaciones artesanales",32,0,0,0]
["MT-048-01-06 ","Suscripción de actas transaccionales para instituciones públicas para trabajadores bajo Código del Trabajo",33,0,0,0]
["MT-016-02-02","Aprobación de extensión de horarios de trabajo (Suplementarias y Extraordinarias)",34,0,0,0]
["MT-045-01-07","Aprobación de reformas a estatutos de organizaciones laborales",37,0,0,0]
["MT-045-03-05","Aprobación de reformas al estatuto de organizaciones sociales, fundaciones y microempresas asociativas",39,0,0,0]
["MT-048-03-01","Resolución de reclamación colectiva presentada por instituciones públicas por la falta de negociación del contrato colectivo bajo Código de Trabajo",41,0,0,0]
["MRL-015-01-02","Refrendación de títulos nuevos y canje de Centros de Formación Artesanal y Organizaciones Artesanales",42,0,0,0]
["MT-045-01-03","Registro de inclusión y/o exclusión de socios de organizaciones laborales",42,0,0,0]
["MT-045-02-05 ","Aprobación de estatutos y concesión de personería jurídica de organizaciones artesanales",44,0,0,0]
["MT-045-01-08 ","Aprobación de estatutos y personería jurídica en organizaciones laborales",44,0,0,0]
["MT-048-01-03 ","Suscripción de contratos colectivos para instituciones privadas",45,0,0,0]
["MT-045-02-06 ","Aprobación de reformas total y parcial de estatutos de organizaciones artesanales",46,0,0,0]
["MT-055-01-01 ","Aprobación de unificación de utilidades para empleadores del sector privado",56,0,0,0]
["MT-053-01-06 ","Legalización de documentos previo a la titulación artesanal bajo la modalidad propios derechos y convalidación profesional",61,0,0,0]
["MT-046-01-03 ","Rehabilitación de impedidos para laborar en el servicio público por destitución",68,0,0,0]
["MT-053-01-05 ","Legalización de documentos previo a la titulación artesanal bajo la modalidad practica profesional",104,0,0,0]
["MT-048-01-04 ","Suscripción de contrato colectivo para instituciones públicas para trabajadores bajo Código del Trabajo",139,0,0,0]
["MT-045-03-02","Registro de inclusión y/o exclusión de miembros en organizaciones sociales, fundaciones y microempresas asociativas",207,0,0,0]
["MT-045-03-06","Aprobación del estatuto y otorgamiento de la personalidad jurídica de organizaciones sociales, fundaciones y microempresas asociativas",217,0,0,0]
["MT-001-08-01","Emisión de copias certificadas de actos administrativos y normativos emitidos por el Ministerio del Trabajo",325,0,0,0]
["MT-045-01-01 ","Registro de directivas de organizaciones laborales",357,0,0,0]
["MT-016-02-01 ","Aprobación de horarios especiales de trabajo de empresas o instituciones bajo Código del Trabajo",427,4,0.93676814988290402,4]
["MRL-008-02-01 ","Terminación de relación laboral a petición del empleador con visto bueno con suspensión de relación laboral",699,0,0,0]
["MT-047-01-01 ","Resolución del pliego de peticiones con sentencia de primera instancia",733,0,0,0]
["MT-045-03-01 ","Registro de directivas para organizaciones sociales, fundaciones y microempresas asociativas",771,0,0,0]
["MRL-005-01-01","Audiencia de diálogo social en la solución de conflictos colectivos",863,0,0,0]
["MT-034-10-01 ","Cálculo del valor correspondiente a la jubilación patronal para trabajadores de código de trabajo en el sector público",1009,0,0,0]
["MRL-008-02-03 ","Terminación de relación laboral a petición del empleado con visto bueno",1056,0,0,0]
["\n MT-049-04-02","Asistencia en el proceso integral de preselección de personal para instituciones públicas y empresas privadas a través del portal Red Socio Empleo",1145,0,0,0]
["MRL-008-02-02 ","Terminación de relación laboral a petición del empleador con visto bueno sin suspensión de relación laboral",1990,0,0,0]
["MT-040-01-01","Autorización laboral para extranjeros para trabajar en el sector público.",2205,0,0,0]
["MT-030-03-01 ","Atención de denuncias laborables en el sector público",2819,12,0.42568286626463286,4]
["MT-034-10-02 ","Cálculo del valor correspondiente a la jubilación patronal para trabajadores del servicio privado",3026,0,0,0]
["MT-005-02-01 ","Audiencia de mediación voluntaria para la solución de conflictos individuales de trabajo",3119,9,0.28855402372555305,4]
["MRL-012-01-01 ","Aprobación de reglamentos internos de trabajo",5104,0,0,0]
["MT-054-01-01 ","Recuperación de claves y modificación de correo electrónico en el Sistema Único de Trabajo",6635,0,0,0]
["MT-021-04-02 ","Registro de la Planificación de Capacitación del programa de Prevención de Riesgos Psicosociales",8340,0,0,0]
["MT-021-01-03 ","Registro de Informe anual de actividades del comité paritario",9189,0,0,0]
["MT-021-01-04 ","Aprobación de reglamentos de higiene y seguridad en el trabajo",10269,3,2.9214139643587496E-2,4]
["MT-046-01-05","Rehabilitación de personas con impedimento laboral en el servicio público a causa de inhabilidad especial por mora.",17484,10,5.7195149851292613E-2,4]
["MT-021-03-02 ","Registro de Promoción y Prevención de Salud en el Trabajo",17489,5,2.8589399050831951E-2,4]
["MT-049-04-03 ","Asistencia en la preselección de personal para instituciones públicas y empresas privadas a través del portal Red Socio Empleo mediante el envío de hojas de vida",18208,0,0,0]
["MT-021-04-01","Registro de Prevención de Amenazas Naturales y Riesgos Antrópicos",18411,0,0,0]
["N/A","Acceso a la Información Pública del Ministerio de Trabajo",18614,28,0.15042441173310411,4]
["MT-049-04-01","Publicación de ofertas laborales en el portal Red Socio Empleo a través de las cuentas de los empleadores",21934,0,0,0]
["MT-044-04-01 ","Registro del pago de multas por sanciones",23965,0,0,0]
["MT-021-01-06 ","Registro de programas de prevención de uso y consumo de drogas en espacios laborales y programa de prevención de riesgo psicosocial",26466,3,1.1335298118340512E-2,4]
["MT-030-03-02 ","Atención de denuncias laborales en el sector privado",29591,39,0.1317968301172654,4]
["MT-021-01-02 ","Registro de organismos paritarios y sus renovaciones",30352,0,0,0]
["MT-021-01-05 ","Registro de la declaración de los riesgos laborales y su plan de acción",33418,0,0,0]
["\n MT-021-02-03 ","Registro de trabajadores capacitados en materia de seguridad y salud en el trabajo.",34093,0,0,0]
["MRL-001-01-08","Emisión de oficio de validación de no tener impedimento para ejercer cargo público a la fecha",36750,0,0,0]
["MT-021-02-02","Registro de capacitaciones realizadas en materia de seguridad y salud en el trabajo",42591,1,2.3479138785189361E-3,4]
["MT-044-03-11","Registro del pago de decimotercera y decimocuarta remuneración para el servicio doméstico",51650,0,0,0]
["MT-021-02-01 ","Registro de la planificación de capacitaciones en materia de seguridad y salud en el trabajo",62368,2,3.2067727039507441E-3,4]
["MT-021-03-01 ","Registro de Vigilancia de la Salud",64992,5,7.693254554406696E-3,4]
["MT-044-03-10 ","Registro del pago de Participación de Utilidades",69017,0,0,0]
["MRL-001-01-03 ","Emisión de certificado de no tener impedimento para ejercer cargo público para extranjeros no residentes",76537,4,5.2262304506317204E-3,4]
["MT-044-03-12","Registro del pago de decimocuarta remuneración",135939,0,0,0]
["MRL-001-01-09 ","Emisión de certificado de relación de dependencia laboral con el sector público",140913,2,1.4193154641516396E-3,4]
["MT-044-03-06","Registro del pago de decimotercera remuneración",143326,0,0,0]
["MT-044-05-01 ","Registro de datos de trabajador para la vinculación laboral",478648,0,0,0]
["MT-044-05-02 ","Registro de actas de finiquito",726991,0,0,0]
["MRL-001-01-01","Emisión de certificado de no tener impedimento para ejercer cargo público para ecuatorianos y extranjeros residentes",1129606,31,2.7443197008514475E-3,4]
["SETEC-014-04-04","Ampliación por incremento de instructores y/o cambio de coordiador pedagógico bajo las mismas áreas, especialidades, cursos o perfiles",0,0,0,0]
["SETEC-016-01-04","Emisión de credenciales de capacitador independiente",0,0,0,0]
["SETEC-014-05-09","Solicitud de la renovación de la calificación de Instituciones de Educación Superior como Operadores de Capacitación por capacitación continua y competencias laborales",0,0,0,0]
["SETEC-015-01-08","Solicitud de modificación al reconocimiento de organismos evaluadores de la conformidad para brindar servicios de certificación de personas",0,0,0,0]
["SETEC-014-05-08","Solicitud de renovación de la calificación de Instituciones de Educación Superior como Operadores de Capacitación por competencias laborales",0,0,0,0]
["SETEC-014-05-04","Solicitud de renovación de la calificación de Instituciones Públicas como Operadores de Capacitación Continua",0,0,0,0]
["SETEC-014-05-05","Solicitud de renovación de la calificación de Instituciones Públicas como Operadores de Capacitación por competencias laborales",0,0,0,0]
["SETEC-014-05-06","Solicitud de renovación de la calificación deInstituciones Públicas como Operadores de Capacitación por capacitación continua y competencias laborales",0,0,0,0]
["SETEC-015-01-01","Reconocimiento de personas naturales como organismos evaluadores de la conformidad para brindar servicios de certificación de personas",2,0,0,0]
["SETEC-014-03-03","Solicitud de modificación de la calificación de Instituciones de Educación Superior como Operadores de Capacitación",2,0,0,0]
["SETEC-014-05-07","Solicitud de renovación de la calificación de Instituciones de Educación Superior como Operadores de Capacitación como Operadores de Capacitación Continua",2,0,0,0]
["SETEC-014-04-02","Ampliación por nuevos cursos e instructores por competencias laborales",4,0,0,0]
["SETEC-014-02-08","Calificación de Instituciones de Educación Superior como Operadores de Capacitación por competencias laborales",4,0,0,0]
["SETEC-014-02-05","Calificación de Instituciones Públicas como Operadores de Capacitación por competencias laborales",4,0,0,0]
["SETEC-015-01-06","Renovación al reconocimiento de organismos evaluadores de la conformidad de Instituciones de Educación Superior para brindar servicios de certificación de personas",4,0,0,0]
["SETEC-015-01-04","Renovación al reconocimiento de organismos evaluadores de la conformidad de personas naturales para brindar servicios de certificación de personas",4,0,0,0]
["SETEC-014-03-02","Solicitud de modificación de la calificación de Instituciones Públicas como Operadores de Capacitación",4,0,0,0]
["SETEC-014-05-02","Solicitud de renovación de la calificación de Personas Naturales, Personas Jurídicas y Empresas Públicas como Operadores de Capacitación por competencias laborales",4,0,0,0]
["SETEC-015-01-02","Reconocimiento de organismos evaluadores de la conformidad de Instituciones de Educación Superior para brindar servicios de certificación de personas",6,0,0,0]
["SETEC-017-01-02","Solicitud de auditoría al cumplimiento de los estándares de calificación",6,0,0,0]
["SETEC-017-02-02","Solicitud de auditoría al cumplimiento del sistema de gestión de certificación de personas",6,0,0,0]
["SETEC-017-01-03","Quejas y sugerencias sobre la prestacción de servicios de capacitación y certificación por parte de terceros",8,4,50,10]
["SETEC-014-02-02","Calificación de Personas Naturales, Personas Jurídicas y Empresas Públicas como Operadores de Capacitación por competencias laborales",12,0,0,0]
["SETEC-014-02-04","Calificación de Instituciones Públicas como Operadores de Capacitación Continua",18,0,0,0]
["SETEC-010-01-02","Elaborar o actualizar perfiles ocupacionales para capacitación y certificación de personas por competancias laborales",22,0,0,0]
["SETEC-015-01-03","Reconocimiento de organismos evaluadores de la conformidad de personas jurídicas para brindar servicios de certificación de personas",26,0,0,0]
["SETEC-014-03-01","Solicitud de modificación de la calificación de Personas Naturales, Personas Jurídicas y Empresas Públicas como Operadores de Capacitación",26,0,0,0]
["SETEC-015-01-05","Renovación al reconocimiento de organismos evaluadores de la conformidad de personas jurídicas para brindar servicios de certificación de personas",28,0,0,0]
["SETEC-014-02-07","Calificación de Instituciones de Educación Superior como Operadores de Capacitación Continua",30,0,0,0]
["SETEC-014-05-01","Solicitud de renovación de la calificación de Personas Naturales, Personas Jurídicas y Empresas Públicas como Operadores de Capacitación de Capacitación Continua",30,0,0,0]
["SETEC-014-02-09","Calificación de Instituciones de Educación Superior como Operadores de Capacitación por capacitación continua y competencias laborales",32,0,0,0]
["SETEC-016-01-02","Renovación de la calificación como capacitador independiente",34,0,0,0]
["SETEC-014-05-03","Solicitud de renovación de la calificación de Personas Naturales, Personas Jurídicas y Empresas Públicas como Operadores de Capacitación por capacitación continua y competencias laborales",34,0,0,0]
["SETEC-014-02-06","Calificación de Instituciones Públicas como Operadores de Capacitación por capacitación continua y competencias laborales",40,0,0,0]
["SETEC-017-03-02","Quejas y sugerencias sobre el mal uso de marca SETEC por parte de terceros",40,0,0,0]
["SETEC-010-02-01","Elaboración de esquemas para la certificación de personas bajo competencias laborales",42,0,0,0]
["SETEC-010-03-01","Elaborar instrumentos para la certificación de personas bajo competencias laborales",42,0,0,0]
["SETEC-014-04-03","Ampliación por nuevos cursos e instructores por capacitación continua y competencias laborales",50,0,0,0]
["SETEC-017-02-01","Solicitud de asesoramiento técnico para el proceso de auditoría al sistema de gestión de certificación de personas",60,0,0,0]
["SETEC-017-01-01","Solicitud de asesoramiento técnico para el proceso de auditoría al cumplimiento de los estándares de calificación",64,0,0,0]
["SETEC-014-04-01","Ampliación por nuevos cursos e instructores por capacitación continua",74,0,0,0]
["SETEC-012-01-01","Asesoramiento metodológico en la elaboración de diseños y estructuras curriculares",124,0,0,0]
["SETEC-016-01-03","Ampliación de la calificación como capacitador independiente",132,0,0,0]
["SETEC-015-01-09","Asistencia técnica en el proceso de reconocimiento de organismos certificadores de personas",142,0,0,0]
["SETEC-015-01-07","Ampliación al reconocimiento de organismos evaluadores de la conformidad para brindar servicios de certificación de personas",154,0,0,0]
["SETEC-014-02-01","Calificación de Personas Naturales, Personas Jurídicas y Empresas Públicas como Operadores de Capacitación de Capacitación Continua",164,0,0,0]
["SETEC-014-02-03","Calificación de Personas Naturales, Personas Jurídicas y Empresas Públicas como Operadores de Capacitación continua y competencias laborales",174,0,0,0]
["SETEC-016-01-01","Calificación como capacitador independiente",422,0,0,0]
["SETEC-017-03-01","Solicitud de aprobación de productos comunicacionales",1120,0,0,0]
["SETEC-016-01-05","Asistencia técnica en el proceso de calificación como capacitador independiente",3680,0,0,0]
["SETEC-017-03-04","Solicitud de sellado de certificados emitidos por los operadores de capacitación de capacitación y organismos evaluadores de la conformidad",99136,0,0,0]
["SETEC-009-02-01","Consulta de análisis y estudios sobre capacitación y certificación de personas",755848,0,0,0]

{"sheet":"COSTO ADMINISTRACIÓN PÚBLICA","index":3,"n_rows":135,"n_cols":9,"rows_kept":135,"cut":false,"hidden":false,"merged":[[0,0,0,5],[1,0,1,5],[3,0,4,0],[3,1,4,1],[3,2,3,4],[3,5,4,5]]}
["PRIORIZACIÓN DE TRÁMITES ADMINISTRATIVOS"]
["COSTOS PARA LA ADMINISTRACIÓN PÚBLICA"]
[]
["IDENTIFICADOR","TRÁMITE","INSUMOS PARA COSTO",null,null,"COSTO PARA LA ADM. PÚBLICA",null,"SBU",400]
[null,null,"TIEMPO (HORAS)","COSTO PERSONAL","COSTO RECURSOS"]
["MT-021-01-01","Aprobación de planos para la construcción, habilitación de fábricas y/o campamentos",15,{"$f":"C6*$I$4/160","v":37.5},200,{"$f":"D6+E6","v":237.5}]
["MT-048-01-05 ","Suscripción de actas transaccionales para instituciones privadas",15,{"$f":"C7*$I$4/160","v":37.5},100,{"$f":"D7+E7","v":137.5}]
["MT-045-03-04","Aprobación de disolución de organizaciones sociales, fundaciones y microempresas asociativas",20,50,100,150]
["MT-045-01-02 ","Registro de la marginación de organizaciones laborales",20,50,100,150]
["\n MT-047-01-02 ","Resolución del pliego de peticiones con sentencia de segunda instancia",20,50,100,150]
["MT-045-02-07 ","Aprobación de disolución voluntaria de personería jurídica de organizaciones artesanales",15,37.5,100,137.5]
["MT-053-02-01","Legalización de documentos FEDESOMEC previo al inicio de cursos",15,37.5,100,137.5]
["MT-045-02-01 ","Registro de ingreso, retiro o exclusión de socios de las organizaciones artesanales",15,37.5,100,137.5]
["MT-046-01-02","Rehabilitación de personas con impedimento laboral en el servicio público a causa de retiro con compensación por retiro voluntario, venta de renuncia o figuras similares",15,37.5,100,137.5]
["MRL-015-01-03 ","Refrendación de títulos nuevos y canje de la Federación Ecuatoriana de Operadores y Mecánicos de Equipo Caminero (FEDESOMEC)",20,50,100,150]
["\n MT-048-03-02","Resolución de reclamación colectiva presentada por instituciones privadas por la falta de negociación del contrato colectivo",20,50,200,250]
["MT-046-01-08 ","Rehabilitación de personas con impedimento laboral en el servicio público a causa de interdicción judicial",4,10,100,110]
["MT-046-01-06","Rehabilitación de personas con impedimento laboral en el servicio público a causa de compra de renuncia con indemnización.",4,10,100,110]
["MT-046-01-01 ","Rehabilitación de impedidos para laborar en el servicio público por indemnización por supresión de puestos",4,10,100,110]
["MT-045-02-04 ","Registro de directivas de las organizaciones artesanales",15,37.5,200,237.5]
["MT-048-01-06 ","Suscripción de actas transaccionales para instituciones públicas para trabajadores bajo Código del Trabajo",15,37.5,100,137.5]
["MT-016-02-02","Aprobación de extensión de horarios de trabajo (Suplementarias y Extraordinarias)",10,25,100,125]
["MT-045-01-07","Aprobación de reformas a estatutos de organizaciones laborales",10,25,100,125]
["MT-045-03-05","Aprobación de reformas al estatuto de organizaciones sociales, fundaciones y microempresas asociativas",10,25,100,125]
["MT-048-03-01","Resolución de reclamación colectiva presentada por instituciones públicas por la falta de negociación del contrato colectivo bajo Código de Trabajo",30,75,200,275]
["MRL-015-01-02","Refrendación de títulos nuevos y canje de Centros de Formación Artesanal y Organizaciones Artesanales",30,75,200,275]
["MT-045-01-03","Registro de inclusión y/o exclusión de socios de organizaciones laborales",15,37.5,100,137.5]
["MT-045-02-05 ","Aprobación de estatutos y concesión de personería jurídica de organizaciones artesanales",20,50,100,150]
["MT-045-01-08 ","Aprobación de estatutos y personería jurídica en organizaciones laborales",20,50,100,150]
["MT-048-01-03 ","Suscripción de contratos colectivos para instituciones privadas",20,50,100,150]
["MT-045-02-06 ","Aprobación de reformas total y parcial de estatutos de organizaciones artesanales",20,50,100,150]
["MT-055-01-01 ","Aprobación de unificación de utilidades para empleadores del sector privado",20,50,100,150]
["MT-053-01-06 ","Legalización de documentos previo a la titulación artesanal bajo la modalidad propios derechos y convalidación profesional",20,50,100,150]
["MT-046-01-03 ","Rehabilitación de impedidos para laborar en el servicio público por destitución",4,10,50,60]
["MT-053-01-05 ","Legalización de documentos previo a la titulación artesanal bajo la modalidad practica profesional",15,37.5,200,237.5]
["MT-048-01-04 ","Suscripción de contrato colectivo para instituciones públicas para trabajadores bajo Código del Trabajo",15,37.5,200,237.5]
["MT-045-03-02","Registro de inclusión y/o exclusión de miembros en organizaciones sociales, fundaciones y microempresas asociativas",15,37.5,200,237.5]
["MT-045-03-06","Aprobación del estatuto y otorgamiento de la personalidad jurídica de organizaciones sociales, fundaciones y microempresas asociativas",20,50,100,150]
["MT-001-08-01","Emisión de copias certificadas de actos administrativos y normativos emitidos por el Ministerio del Trabajo",20,50,100,150]
["MT-045-01-01 ","Registro de directivas de organizaciones laborales",20,50,100,150]
["MT-016-02-01 ","Aprobación de horarios especiales de trabajo de empresas o instituciones bajo Código del Trabajo",10,25,100,125]
["MRL-008-02-01 ","Terminación de relación laboral a petición del empleador con visto bueno con suspensión de relación laboral",15,37.5,200,237.5]
["MT-047-01-01 ","Resolución del pliego de peticiones con sentencia de primera instancia",20,50,100,150]
["MT-045-03-01 ","Registro de directivas para organizaciones sociales, fundaciones y microempresas asociativas",20,50,100,150]
["MRL-005-01-01","Audiencia de diálogo social en la solución de conflictos colectivos",20,50,100,150]
["MT-034-10-01 ","Cálculo del valor correspondiente a la jubilación patronal para trabajadores de código de trabajo en el sector público",8,20,100,120]
["MRL-008-02-03 ","Terminación de relación laboral a petición del empleado con visto bueno",10,25,200,225]
["\n MT-049-04-02","Asistencia en el proceso integral de preselección de personal para instituciones públicas y empresas privadas a través del portal Red Socio Empleo",30,75,200,275]
["MRL-008-02-02 ","Terminación de relación laboral a petición del empleador con visto bueno sin suspensión de relación laboral",10,25,200,225]
["MT-040-01-01","Autorización laboral para extranjeros para trabajar en el sector público.",8,20,50,70]
["MT-030-03-01 ","Atención de denuncias laborables en el sector público",15,37.5,200,237.5]
["MT-034-10-02 ","Cálculo del valor correspondiente a la jubilación patronal para trabajadores del servicio privado",8,20,100,120]
["MT-005-02-01 ","Audiencia de mediación voluntaria para la solución de conflictos individuales de trabajo",15,37.5,100,137.5]
["MRL-012-01-01 ","Aprobación de reglamentos internos de trabajo",8,20,100,120]
["MT-054-01-01 ","Recuperación de claves y modificación de correo electrónico en el Sistema Único de Trabajo",2,5,50,55]
["MT-021-04-02 ","Registro de la Planificación de Capacitación del programa de Prevención de Riesgos Psicosociales",5,12.5,50,62.5]
["MT-021-01-03 ","Registro de Informe anual de actividades del comité paritario",5,12.5,50,62.5]
["MT-021-01-04 ","Aprobación de reglamentos de higiene y seguridad en el trabajo",5,12.5,50,62.5]
["MT-046-01-05","Rehabilitación de personas con impedimento laboral en el servicio público a causa de inhabilidad especial por mora.",4,10,100,110]
["MT-021-03-02 ","Registro de Promoción y Prevención de Salud en el Trabajo",4,10,100,110]
["MT-049-04-03 ","Asistencia en la preselección de personal para instituciones públicas y empresas privadas a través del portal Red Socio Empleo mediante el envío de hojas de vida",8,20,100,120]
["MT-021-04-01","Registro de Prevención de Amenazas Naturales y Riesgos Antrópicos",4,10,50,60]
["N/A","Acceso a la Información Pública del Ministerio de Trabajo",4,10,50,60]
["MT-049-04-01","Publicación de ofertas laborales en el portal Red Socio Empleo a través de las cuentas de los empleadores",2,5,50,55]
["MT-044-04-01 ","Registro del pago de multas por sanciones",4,10,100,110]
["MT-021-01-06 ","Registro de programas de prevención de uso y consumo de drogas en espacios laborales y programa de prevención de riesgo psicosocial",4,10,100,110]
["MT-030-03-02 ","Atención de denuncias laborales en el sector privado",10,25,100,125]
["MT-021-01-02 ","Registro de organismos paritarios y sus renovaciones",10,25,100,125]
["MT-021-01-05 ","Registro de la declaración de los riesgos laborales y su plan de acción",8,20,100,120]
["\n MT-021-02-03 ","Registro de trabajadores capacitados en materia de seguridad y salud en el trabajo.",8,20,100,120]
["MRL-001-01-08","Emisión de oficio de validación de no tener impedimento para ejercer cargo público a la fecha",4,10,50,60]
["MT-021-02-02","Registro de capacitaciones realizadas en materia de seguridad y salud en el trabajo",4,10,50,60]
["MT-044-03-11","Registro del pago de decimotercera y decimocuarta remuneración para el servicio doméstico",4,10,100,110]
["MT-021-02-01 ","Registro de la planificación de capacitaciones en materia de seguridad y salud en el trabajo",4,10,50,60]
["MT-021-03-01 ","Registro de Vigilancia de la Salud",4,10,50,60]
["MT-044-03-10 ","Registro del pago de Participación de Utilidades",4,10,100,110]
["MRL-001-01-03 ","Emisión de certificado de no tener impedimento para ejercer cargo público para extranjeros no residentes",4,10,50,60]
["MT-044-03-12","Registro del pago de decimocuarta remuneración",5,12.5,100,112.5]
["MRL-001-01-09 ","Emisión de certificado de relación de dependencia laboral con el sector público",2,5,100,105]
["MT-044-03-06","Registro del pago de decimotercera remuneración",2,5,100,105]
["MT-044-05-01 ","Registro de datos de trabajador para la vinculación laboral",2,5,50,55]
["MT-044-05-02 ","Registro de actas de finiquito",2,5,50,55]
["MRL-001-01-01","Emisión de certificado de no tener impedimento para ejercer cargo público para ecuatorianos y extranjeros residentes",2,5,100,105]
["SETEC-014-04-04","Ampliación por incremento de instructores y/o cambio de coordiador pedagógico bajo las mismas áreas, especialidades, cursos o perfiles",1.1000000000000001,{"$f":"C84*$I$4/160","v":2.7500000000000004},8.7125000000000004,{"$f":"D84+E84","v":11.4625}]
["SETEC-016-01-04","Emisión de credenciales de capacitador independiente",0.2,{"$f":"C85*$I$4/160","v":0.5},{"$f":"0.4+0.06","v":0.46},{"$f":"D85+E85","v":0.96}]
["SETEC-014-05-09","Solicitud de la renovación de la calificación de Instituciones de Educación Superior como Operadores de Capacitación por capacitación continua y competencias laborales",0.5,1.25,7.7869999999999999,9.036999999999999]
["SETEC-015-01-08","Solicitud de modificación al reconocimiento de organismos evaluadores de la conformidad para brindar servicios de certificación de personas",8,20,{"$f":"(15*0.15)+(180*0.08)+(1*0.12)+(0.2*3.17)+(20*0.03)","v":18.004000000000001},38.004000000000005]
["SETEC-014-05-08","Solicitud de renovación de la calificación de Instituciones de Educación Superior como Operadores de Capacitación por competencias laborales",0.5,1.25,7.7869999999999999,9.036999999999999]
["SETEC-014-05-04","Solicitud de renovación de la calificación de Instituciones Públicas como Operadores de Capacitación Continua",0.5,1.25,7.7869999999999999,9.036999999999999]
["SETEC-014-05-05","Solicitud de renovación de la calificación de Instituciones Públicas como Operadores de Capacitación por competencias laborales",0.5,1.25,7.7869999999999999,9.036999999999999]
["SETEC-014-05-06","Solicitud de renovación de la calificación deInstituciones Públicas como Operadores de Capacitación por capacitación continua y competencias laborales",0.5,1.25,7.7869999999999999,9.036999999999999]
["SETEC-015-01-01","Reconocimiento de personas naturales como organismos evaluadores de la conformidad para brindar servicios de certificación de personas",5,12.5,20.254000000000001,32.754000000000005]
["SETEC-014-03-03","Solicitud de modificación de la calificación de Instituciones de Educación Superior como Operadores de Capacitación",4,10,8.7125000000000004,18.712499999999999]
["SETEC-014-05-07","Solicitud de renovación de la calificación de Instituciones de Educación Superior como Operadores de Capacitación como Operadores de Capacitación Continua",0.5,1.25,7.7869999999999999,9.036999999999999]
["SETEC-014-04-02","Ampliación por nuevos cursos e instructores por competencias laborales",4,10,8.7125000000000004,18.712499999999999]
["SETEC-014-02-08","Calificación de Instituciones de Educación Superior como Operadores de Capacitación por competencias laborales",4,10,17.305,27.305]
["SETEC-014-02-05","Calificación de Instituciones Públicas como Operadores de Capacitación por competencias laborales",4,10,17.305,27.305]
["SETEC-015-01-06","Renovación al reconocimiento de organismos evaluadores de la conformidad de Instituciones de Educación Superior para brindar servicios de certificación de personas",5,12.5,{"$f":"(15*0.15)+(120*0.08)+(1*0.12)+(0.1*3.17)+(10*0.03)","v":12.587},25.087]
["SETEC-015-01-04","Renovación al reconocimiento de organismos evaluadores de la conformidad de personas naturales para brindar servicios de certificación de personas",5,12.5,{"$f":"(15*0.15)+(120*0.08)+(1*0.12)+(0.1*3.17)+(10*0.03)","v":12.587},25.087]
["SETEC-014-03-02","Solicitud de modificación de la calificación de Instituciones Públicas como Operadores de Capacitación",4,10,8.7125000000000004,18.712499999999999]
["SETEC-014-05-02","Solicitud de renovación de la calificación de Personas Naturales, Personas Jurídicas y Empresas Públicas como Operadores de Capacitación por competencias laborales",0.5,1.25,7.7869999999999999,9.036999999999999]
["SETEC-015-01-02","Reconocimiento de organismos evaluadores de la conformidad de Instituciones de Educación Superior para brindar servicios de certificación de personas",242,605,20.254000000000001,625.25400000000002]
["SETEC-017-01-02","Solicitud de auditoría al cumplimiento de los estándares de calificación",9,22.5,{"$f":"(60*0.15)","v":9},31.5]
["SETEC-017-02-02","Solicitud de auditoría al cumplimiento del sistema de gestión de certificación de personas",9,22.5,9,31.5]
["SETEC-017-01-03","Quejas y sugerencias sobre la prestacción de servicios de capacitación y certificación por parte de terceros",3.3,8.25,{"$f":"+(100*0.15)","v":15},23.25]
["SETEC-014-02-02","Calificación de Personas Naturales, Personas Jurídicas y Empresas Públicas como Operadores de Capacitación por competencias laborales",4,10,17.305,27.305]
["SETEC-014-02-04","Calificación de Instituciones Públicas como Operadores de Capacitación Continua",4,10,17.305,27.305]
["SETEC-010-01-02","Elaborar o actualizar perfiles ocupacionales para capacitación y certificación de personas por competancias laborales",40,100,360,460]
["SETEC-015-01-03","Reconocimiento de organismos evaluadores de la conformidad de personas jurídicas para brindar servicios de certificación de personas",5,12.5,{"$f":"(30*0.15)+(180*0.08)+(1*0.12)+(0.2*3.17)+(20*0.03)","v":20.254000000000001},32.754000000000005]
["SETEC-014-03-01","Solicitud de modificación de la calificación de Personas Naturales, Personas Jurídicas y Empresas Públicas como Operadores de Capacitación",4,10,8.7125000000000004,18.712499999999999]
["SETEC-015-01-05","Renovación al reconocimiento de organismos evaluadores de la conformidad de personas jurídicas para brindar servicios de certificación de personas",5,12.5,{"$f":"(15*0.15)+(120*0.08)+(1*0.12)+(0.1*3.17)+(10*0.03)","v":12.587},25.087]
["SETEC-014-02-07","Calificación de Instituciones de Educación Superior como Operadores de Capacitación Continua",4,10,17.305,27.305]
["SETEC-014-05-01","Solicitud de renovación de la calificación de Personas Naturales, Personas Jurídicas y Empresas Públicas como Operadores de Capacitación de Capacitación Continua",0.5,1.25,7.7869999999999999,9.036999999999999]
["SETEC-014-02-09","Calificación de Instituciones de Educación Superior como Operadores de Capacitación por capacitación continua y competencias laborales",6,15,17.305,32.305]
["SETEC-016-01-02","Renovación de la calificación como capacitador independiente",15,37.5,{"$f":"(120*0.15)","v":18},55.5]
["SETEC-014-05-03","Solicitud de renovación de la calificación de Personas Naturales, Personas Jurídicas y Empresas Públicas como Operadores de Capacitación por capacitación continua y competencias laborales",0.5,1.25,7.7869999999999999,9.036999999999999]
["SETEC-014-02-06","Calificación de Instituciones Públicas como Operadores de Capacitación por capacitación continua y competencias laborales",6,15,17.305,32.305]
["SETEC-017-03-02","Quejas y sugerencias sobre el mal uso de marca SETEC por parte de terceros",2,5,{"$f":"(240*0.15)","v":36},41]
["SETEC-010-02-01","Elaboración de esquemas para la certificación de personas bajo competencias laborales",40,100,360,460]
["SETEC-010-03-01","Elaborar instrumentos para la certificación de personas bajo competencias laborales",40,100,360,460]
["SETEC-014-04-03","Ampliación por nuevos cursos e instructores por capacitación continua y competencias laborales",4,10,8.7125000000000004,18.712499999999999]
["SETEC-017-02-01","Solicitud de asesoramiento técnico para el proceso de auditoría al sistema de gestión de certificación de personas",1,2.5,{"$f":"(60*0.15)","v":9},11.5]
["SETEC-017-01-01","Solicitud de asesoramiento técnico para el proceso de auditoría al cumplimiento de los estándares de calificación",1,2.5,9,11.5]
["SETEC-014-04-01","Ampliación por nuevos cursos e instructores por capacitación continua",4,10,8.7125000000000004,18.712499999999999]
["SETEC-012-01-01","Asesoramiento metodológico en la elaboración de diseños y estructuras curriculares",1,2.5,360,362.5]
["SETEC-016-01-03","Ampliación de la calificación como capacitador independiente",48,120,{"$f":"(120*0.15)","v":18},138]
["SETEC-015-01-09","Asistencia técnica en el proceso de reconocimiento de organismos certificadores de personas",1,2.5,{"$f":"(10*0.15)+(1*0.12)+(0.02*3.17)+(2*0.03)","v":1.7434000000000001},4.2434000000000003]
["SETEC-015-01-07","Ampliación al reconocimiento de organismos evaluadores de la conformidad para brindar servicios de certificación de personas",5,12.5,{"$f":"(15*0.15)+(180*0.08)+(1*0.12)+(0.2*3.17)+(20*0.03)","v":18.004000000000001},30.504000000000001]
["SETEC-014-02-01","Calificación de Personas Naturales, Personas Jurídicas y Empresas Públicas como Operadores de Capacitación de Capacitación Continua",4,10,17.305,27.305]
["SETEC-014-02-03","Calificación de Personas Naturales, Personas Jurídicas y Empresas Públicas como Operadores de Capacitación continua y competencias laborales",4,10,17.305,27.305]
["SETEC-016-01-01","Calificación como capacitador independiente",48,120,{"$f":"(120*0.15)","v":18},138]
["SETEC-017-03-01","Solicitud de aprobación de productos comunicacionales",0.3,0.75,{"$f":"(60*0.15)","v":9},9.75]
["SETEC-016-01-05","Asistencia técnica en el proceso de calificación como capacitador independiente",0.1,0.25,{"$f":"(60*0.15)","v":9},9.25]
["SETEC-017-03-04","Solicitud de sellado de certificados emitidos por los operadores de capacitación de capacitación y organismos evaluadores de la conformidad",1,2.5,{"$f":"+(60*0.15)","v":9},11.5]
["SETEC-009-02-01","Consulta de análisis y estudios sobre capacitación y certificación de personas",8,20,72,92]

{"sheet":"RESUMEN DE COSTOS AP","index":4,"n_rows":134,"n_cols":4,"rows_kept":134,"cut":false,"hidden":false,"merged":[[0,0,0,5],[1,0,1,5]]}
["PRIORIZACIÓN DE TRÁMITES ADMINISTRATIVOS"]
["COSTOS PARA LA ADMINISTRACIÓN PÚBLICA"]
[]
["IDENTIFICADOR","TRÁMITE","COSTO PARA LA ADM. PÚBLICA","PUNTUACIÓN"]
["MT-049-04-01","Publicación de ofertas laborales en el portal Red Socio Empleo a través de las cuentas de los empleadores",55,5]
["MT-054-01-01 ","Recuperación de claves y modificación de correo electrónico en el Sistema Único de Trabajo",55,5]
["MT-044-05-02 ","Registro de actas de finiquito",55,5]
["MT-044-05-01 ","Registro de datos de trabajador para la vinculación laboral",55,5]
["N/A","Acceso a la Información Pública del Ministerio de Trabajo",60,5]
["MRL-001-01-03 ","Emisión de certificado de no tener impedimento para ejercer cargo público para extranjeros no residentes",60,5]
["MRL-001-01-08","Emisión de oficio de validación de no tener impedimento para ejercer cargo público a la fecha",60,5]
["MT-021-02-02","Registro de capacitaciones realizadas en materia de seguridad y salud en el trabajo",60,5]
["MT-021-02-01 ","Registro de la planificación de capacitaciones en materia de seguridad y salud en el trabajo",60,5]
["MT-021-04-01","Registro de Prevención de Amenazas Naturales y Riesgos Antrópicos",60,5]
["MT-021-03-01 ","Registro de Vigilancia de la Salud",60,5]
["MT-046-01-03 ","Rehabilitación de impedidos para laborar en el servicio público por destitución",60,5]
["MT-021-01-04 ","Aprobación de reglamentos de higiene y seguridad en el trabajo",62.5,5]
["MT-021-01-03 ","Registro de Informe anual de actividades del comité paritario",62.5,5]
["MT-021-04-02 ","Registro de la Planificación de Capacitación del programa de Prevención de Riesgos Psicosociales",62.5,5]
["MT-040-01-01","Autorización laboral para extranjeros para trabajar en el sector público.",70,5]
["MRL-001-01-01","Emisión de certificado de no tener impedimento para ejercer cargo público para ecuatorianos y extranjeros residentes",105,5]
["MRL-001-01-09 ","Emisión de certificado de relación de dependencia laboral con el sector público",105,5]
["MT-044-03-06","Registro del pago de decimotercera remuneración",105,5]
["MT-021-01-06 ","Registro de programas de prevención de uso y consumo de drogas en espacios laborales y programa de prevención de riesgo psicosocial",110,5]
["MT-021-03-02 ","Registro de Promoción y Prevención de Salud en el Trabajo",110,5]
["MT-044-03-11","Registro del pago de decimotercera y decimocuarta remuneración para el servicio doméstico",110,5]
["MT-044-04-01 ","Registro del pago de multas por sanciones",110,5]
["MT-044-03-10 ","Registro del pago de Participación de Utilidades",110,5]
["MT-046-01-01 ","Rehabilitación de impedidos para laborar en el servicio público por indemnización por supresión de puestos",110,5]
["MT-046-01-06","Rehabilitación de personas con impedimento laboral en el servicio público a causa de compra de renuncia con indemnización.",110,5]
["MT-046-01-05","Rehabilitación de personas con impedimento laboral en el servicio público a causa de inhabilidad especial por mora.",110,5]
["MT-046-01-08 ","Rehabilitación de personas con impedimento laboral en el servicio público a causa de interdicción judicial",110,5]
["MT-044-03-12","Registro del pago de decimocuarta remuneración",112.5,5]
["MRL-012-01-01 ","Aprobación de reglamentos internos de trabajo",120,5]
["MT-049-04-03 ","Asistencia en la preselección de personal para instituciones públicas y empresas privadas a través del portal Red Socio Empleo mediante el envío de hojas de vida",120,5]
["MT-034-10-01 ","Cálculo del valor correspondiente a la jubilación patronal para trabajadores de código de trabajo en el sector público",120,5]
["MT-034-10-02 ","Cálculo del valor correspondiente a la jubilación patronal para trabajadores del servicio privado",120,5]
["MT-021-01-05 ","Registro de la declaración de los riesgos laborales y su plan de acción",120,5]
["\n MT-021-02-03 ","Registro de trabajadores capacitados en materia de seguridad y salud en el trabajo.",120,5]
["MT-016-02-02","Aprobación de extensión de horarios de trabajo (Suplementarias y Extraordinarias)",125,5]
["MT-016-02-01 ","Aprobación de horarios especiales de trabajo de empresas o instituciones bajo Código del Trabajo",125,5]
["MT-045-01-07","Aprobación de reformas a estatutos de organizaciones laborales",125,5]
["MT-045-03-05","Aprobación de reformas al estatuto de organizaciones sociales, fundaciones y microempresas asociativas",125,5]
["MT-030-03-02 ","Atención de denuncias laborales en el sector privado",125,5]
["MT-021-01-02 ","Registro de organismos paritarios y sus renovaciones",125,5]
["MT-045-02-07 ","Aprobación de disolución voluntaria de personería jurídica de organizaciones artesanales",137.5,5]
["MT-005-02-01 ","Audiencia de mediación voluntaria para la solución de conflictos individuales de trabajo",137.5,5]
["MT-053-02-01","Legalización de documentos FEDESOMEC previo al inicio de cursos",137.5,5]
["MT-045-01-03","Registro de inclusión y/o exclusión de socios de organizaciones laborales",137.5,5]
["MT-045-02-01 ","Registro de ingreso, retiro o exclusión de socios de las organizaciones artesanales",137.5,5]
["MT-046-01-02","Rehabilitación de personas con impedimento laboral en el servicio público a causa de retiro con compensación por retiro voluntario, venta de renuncia o figuras similares",137.5,5]
["MT-048-01-05 ","Suscripción de actas transaccionales para instituciones privadas",137.5,5]
["MT-048-01-06 ","Suscripción de actas transaccionales para instituciones públicas para trabajadores bajo Código del Trabajo",137.5,5]
["MT-045-03-04","Aprobación de disolución de organizaciones sociales, fundaciones y microempresas asociativas",150,10]
["MT-045-02-05 ","Aprobación de estatutos y concesión de personería jurídica de organizaciones artesanales",150,10]
["MT-045-01-08 ","Aprobación de estatutos y personería jurídica en organizaciones laborales",150,10]
["MT-045-02-06 ","Aprobación de reformas total y parcial de estatutos de organizaciones artesanales",150,10]
["MT-055-01-01 ","Aprobación de unificación de utilidades para empleadores del sector privado",150,10]
["MT-045-03-06","Aprobación del estatuto y otorgamiento de la personalidad jurídica de organizaciones sociales, fundaciones y microempresas asociativas",150,10]
["MRL-005-01-01","Audiencia de diálogo social en la solución de conflictos colectivos",150,10]
["MT-001-08-01","Emisión de copias certificadas de actos administrativos y normativos emitidos por el Ministerio del Trabajo",150,10]
["MT-053-01-06 ","Legalización de documentos previo a la titulación artesanal bajo la modalidad propios derechos y convalidación profesional",150,10]
["MRL-015-01-03 ","Refrendación de títulos nuevos y canje de la Federación Ecuatoriana de Operadores y Mecánicos de Equipo Caminero (FEDESOMEC)",150,10]
["MT-045-01-01 ","Registro de directivas de organizaciones laborales",150,10]
["MT-045-03-01 ","Registro de directivas para organizaciones sociales, fundaciones y microempresas asociativas",150,10]
["MT-045-01-02 ","Registro de la marginación de organizaciones laborales",150,10]
["MT-047-01-01 ","Resolución del pliego de peticiones con sentencia de primera instancia",150,10]
["MT-048-01-03 ","Suscripción de contratos colectivos para instituciones privadas",150,10]
["MRL-008-02-03 ","Terminación de relación laboral a petición del empleado con visto bueno",225,10]
["MRL-008-02-02 ","Terminación de relación laboral a petición del empleador con visto bueno sin suspensión de relación laboral",225,10]
["MT-021-01-01","Aprobación de planos para la construcción, habilitación de fábricas y/o campamentos",237.5,10]
["MT-030-03-01 ","Atención de denuncias laborables en el sector público",237.5,10]
["MT-053-01-05 ","Legalización de documentos previo a la titulación artesanal bajo la modalidad practica profesional",237.5,10]
["MT-045-02-04 ","Registro de directivas de las organizaciones artesanales",237.5,10]
["MT-045-03-02","Registro de inclusión y/o exclusión de miembros en organizaciones sociales, fundaciones y microempresas asociativas",237.5,10]
["MT-048-01-04 ","Suscripción de contrato colectivo para instituciones públicas para trabajadores bajo Código del Trabajo",237.5,10]
["MRL-008-02-01 ","Terminación de relación laboral a petición del empleador con visto bueno con suspensión de relación laboral",237.5,10]
["\n MT-048-03-02","Resolución de reclamación colectiva presentada por instituciones privadas por la falta de negociación del contrato colectivo",250,10]
["\n MT-047-01-02 ","Resolución del pliego de peticiones con sentencia de segunda instancia",150,10]
["\n MT-049-04-02","Asistencia en el proceso integral de preselección de personal para instituciones públicas y empresas privadas a través del portal Red Socio Empleo",275,10]
["MRL-015-01-02","Refrendación de títulos nuevos y canje de Centros de Formación Artesanal y Organizaciones Artesanales",275,10]
["MT-048-03-01","Resolución de reclamación colectiva presentada por instituciones públicas por la falta de negociación del contrato colectivo bajo Código de Trabajo",275,10]
["SETEC-016-01-04","Emisión de credenciales de capacitador independiente",0.96,10]
["SETEC-015-01-09","Asistencia técnica en el proceso de reconocimiento de organismos certificadores de personas",4.2434000000000003,10]
["SETEC-014-05-09","Solicitud de la renovación de la calificación de Instituciones de Educación Superior como Operadores de Capacitación por capacitación continua y competencias laborales",9.036999999999999,10]
["SETEC-014-05-07","Solicitud de renovación de la calificación de Instituciones de Educación Superior como Operadores de Capacitación como Operadores de Capacitación Continua",9.036999999999999,10]
["SETEC-014-05-08","Solicitud de renovación de la calificación de Instituciones de Educación Superior como Operadores de Capacitación por competencias laborales",9.036999999999999,10]
["SETEC-014-05-04","Solicitud de renovación de la calificación de Instituciones Públicas como Operadores de Capacitación Continua",9.036999999999999,10]
["SETEC-014-05-05","Solicitud de renovación de la calificación de Instituciones Públicas como Operadores de Capacitación por competencias laborales",9.036999999999999,10]
["SETEC-014-05-01","Solicitud de renovación de la calificación de Personas Naturales, Personas Jurídicas y Empresas Públicas como Operadores de Capacitación de Capacitación Continua",9.036999999999999,10]
["SETEC-014-05-03","Solicitud de renovación de la calificación de Personas Naturales, Personas Jurídicas y Empresas Públicas como Operadores de Capacitación por capacitación continua y competencias laborales",9.036999999999999,10]
["SETEC-014-05-02","Solicitud de renovación de la calificación de Personas Naturales, Personas Jurídicas y Empresas Públicas como Operadores de Capacitación por competencias laborales",9.036999999999999,10]
["SETEC-014-05-06","Solicitud de renovación de la calificación deInstituciones Públicas como Operadores de Capacitación por capacitación continua y competencias laborales",9.036999999999999,10]
["SETEC-016-01-05","Asistencia técnica en el proceso de calificación como capacitador independiente",9.25,20]
["SETEC-017-03-01","Solicitud de aprobación de productos comunicacionales",9.75,20]
["SETEC-014-04-04","Ampliación por incremento de instructores y/o cambio de coordiador pedagógico bajo las mismas áreas, especialidades, cursos o perfiles",11.4625,20]
["SETEC-017-01-01","Solicitud de asesoramiento técnico para el proceso de auditoría al cumplimiento de los estándares de calificación",11.5,20]
["SETEC-017-02-01","Solicitud de asesoramiento técnico para el proceso de auditoría al sistema de gestión de certificación de personas",11.5,20]
["SETEC-017-03-04","Solicitud de sellado de certificados emitidos por los operadores de capacitación de capacitación y organismos evaluadores de la conformidad",11.5,20]
["SETEC-014-04-01","Ampliación por nuevos cursos e instructores por capacitación continua",18.712499999999999,20]
["SETEC-014-04-03","Ampliación por nuevos cursos e instructores por capacitación continua y competencias laborales",18.712499999999999,20]
["SETEC-014-04-02","Ampliación por nuevos cursos e instructores por competencias laborales",18.712499999999999,20]
["SETEC-014-03-03","Solicitud de modificación de la calificación de Instituciones de Educación Superior como Operadores de Capacitación",18.712499999999999,20]
["SETEC-014-03-02","Solicitud de modificación de la calificación de Instituciones Públicas como Operadores de Capacitación",18.712499999999999,20]
["SETEC-014-03-01","Solicitud de modificación de la calificación de Personas Naturales, Personas Jurídicas y Empresas Públicas como Operadores de Capacitación",18.712499999999999,20]
["SETEC-017-01-03","Quejas y sugerencias sobre la prestacción de servicios de capacitación y certificación por parte de terceros",23.25,20]
["SETEC-015-01-06","Renovación al reconocimiento de organismos evaluadores de la conformidad de Instituciones de Educación Superior para brindar servicios de certificación de personas",25.087,20]
["SETEC-015-01-05","Renovación al reconocimiento de organismos evaluadores de la conformidad de personas jurídicas para brindar servicios de certificación de personas",25.087,20]
["SETEC-015-01-04","Renovación al reconocimiento de organismos evaluadores de la conformidad de personas naturales para brindar servicios de certificación de personas",25.087,20]
["SETEC-014-02-07","Calificación de Instituciones de Educación Superior como Operadores de Capacitación Continua",27.305,20]
["SETEC-014-02-08","Calificación de Instituciones de Educación Superior como Operadores de Capacitación por competencias laborales",27.305,20]
["SETEC-014-02-04","Calificación de Instituciones Públicas como Operadores de Capacitación Continua",27.305,20]
["SETEC-014-02-05","Calificación de Instituciones Públicas como Operadores de Capacitación por competencias laborales",27.305,20]
["SETEC-014-02-03","Calificación de Personas Naturales, Personas Jurídicas y Empresas Públicas como Operadores de Capacitación continua y competencias laborales",27.305,20]
["SETEC-014-02-01","Calificación de Personas Naturales, Personas Jurídicas y Empresas Públicas como Operadores de Capacitación de Capacitación Continua",27.305,20]
["SETEC-014-02-02","Calificación de Personas Naturales, Personas Jurídicas y Empresas Públicas como Operadores de Capacitación por competencias laborales",27.305,20]
["SETEC-015-01-07","Ampliación al reconocimiento de organismos evaluadores de la conformidad para brindar servicios de certificación de personas",30.504000000000001,20]
["SETEC-017-01-02","Solicitud de auditoría al cumplimiento de los estándares de calificación",31.5,20]
["SETEC-017-02-02","Solicitud de auditoría al cumplimiento del sistema de gestión de certificación de personas",31.5,20]
["SETEC-014-02-09","Calificación de Instituciones de Educación Superior como Operadores de Capacitación por capacitación continua y competencias laborales",32.305,20]
["SETEC-014-02-06","Calificación de Instituciones Públicas como Operadores de Capacitación por capacitación continua y competencias laborales",32.305,20]
["SETEC-015-01-03","Reconocimiento de organismos evaluadores de la conformidad de personas jurídicas para brindar servicios de certificación de personas",32.754000000000005,20]
["SETEC-015-01-01","Reconocimiento de personas naturales como organismos evaluadores de la conformidad para brindar servicios de certificación de personas",32.754000000000005,20]
["SETEC-015-01-08","Solicitud de modificación al reconocimiento de organismos evaluadores de la conformidad para brindar servicios de certificación de personas",38.004000000000005,20]
["SETEC-017-03-02","Quejas y sugerencias sobre el mal uso de marca SETEC por parte de terceros",41,20]
["SETEC-016-01-02","Renovación de la calificación como capacitador independiente",55.5,20]
["SETEC-009-02-01","Consulta de análisis y estudios sobre capacitación y certificación de personas",92,20]
["SETEC-016-01-03","Ampliación de la calificación como capacitador independiente",138,20]
["SETEC-016-01-01","Calificación como capacitador independiente",138,20]
["SETEC-012-01-01","Asesoramiento metodológico en la elaboración de diseños y estructuras curriculares",362.5,20]
["SETEC-010-02-01","Elaboración de esquemas para la certificación de personas bajo competencias laborales",460,20]
["SETEC-010-03-01","Elaborar instrumentos para la certificación de personas bajo competencias laborales",460,20]
["SETEC-010-01-02","Elaborar o actualizar perfiles ocupacionales para capacitación y certificación de personas por competancias laborales",460,20]
["SETEC-015-01-02","Reconocimiento de organismos evaluadores de la conformidad de Instituciones de Educación Superior para brindar servicios de certificación de personas",625.25400000000002,20]

{"sheet":"TIEMPO DE RESPUESTA","index":5,"n_rows":134,"n_cols":4,"rows_kept":134,"cut":false,"hidden":false,"merged":[[0,0,0,3],[1,0,1,3]]}
["PRIORIZACIÓN DE TRÁMITES ADMINISTRATIVOS"]
["TIEMPO DE RESPUESTA"]
[]
["IDENTIFICADOR","TRÁMITE","TIEMPO RESPUESTA (horas laborables)","PUNTUACIÓN"]
["MT-021-01-01","Aprobación de planos para la construcción, habilitación de fábricas y/o campamentos",60,30]
["MT-048-01-05 ","Suscripción de actas transaccionales para instituciones privadas",40,0]
["MT-045-03-04","Aprobación de disolución de organizaciones sociales, fundaciones y microempresas asociativas",40,0]
["MT-045-01-02 ","Registro de la marginación de organizaciones laborales",40,0]
["\n MT-047-01-02 ","Resolución del pliego de peticiones con sentencia de segunda instancia",60,30]
["MT-045-02-07 ","Aprobación de disolución voluntaria de personería jurídica de organizaciones artesanales",40,0]
["MT-053-02-01","Legalización de documentos FEDESOMEC previo al inicio de cursos",16,0]
["MT-045-02-01 ","Registro de ingreso, retiro o exclusión de socios de las organizaciones artesanales",60,30]
["MT-046-01-02","Rehabilitación de personas con impedimento laboral en el servicio público a causa de retiro con compensación por retiro voluntario, venta de renuncia o figuras similares",24,0]
["MRL-015-01-03 ","Refrendación de títulos nuevos y canje de la Federación Ecuatoriana de Operadores y Mecánicos de Equipo Caminero (FEDESOMEC)",40,0]
["\n MT-048-03-02","Resolución de reclamación colectiva presentada por instituciones privadas por la falta de negociación del contrato colectivo",40,0]
["MT-046-01-08 ","Rehabilitación de personas con impedimento laboral en el servicio público a causa de interdicción judicial",24,0]
["MT-046-01-06","Rehabilitación de personas con impedimento laboral en el servicio público a causa de compra de renuncia con indemnización.",12,0]
["MT-046-01-01 ","Rehabilitación de impedidos para laborar en el servicio público por indemnización por supresión de puestos",40,0]
["MT-045-02-04 ","Registro de directivas de las organizaciones artesanales",40,0]
["MT-048-01-06 ","Suscripción de actas transaccionales para instituciones públicas para trabajadores bajo Código del Trabajo",40,0]
["MT-016-02-02","Aprobación de extensión de horarios de trabajo (Suplementarias y Extraordinarias)",24,0]
["MT-045-01-07","Aprobación de reformas a estatutos de organizaciones laborales",40,0]
["MT-045-03-05","Aprobación de reformas al estatuto de organizaciones sociales, fundaciones y microempresas asociativas",40,0]
["MT-048-03-01","Resolución de reclamación colectiva presentada por instituciones públicas por la falta de negociación del contrato colectivo bajo Código de Trabajo",40,0]
["MRL-015-01-02","Refrendación de títulos nuevos y canje de Centros de Formación Artesanal y Organizaciones Artesanales",16,0]
["MT-045-01-03","Registro de inclusión y/o exclusión de socios de organizaciones laborales",40,0]
["MT-045-02-05 ","Aprobación de estatutos y concesión de personería jurídica de organizaciones artesanales",30,0]
["MT-045-01-08 ","Aprobación de estatutos y personería jurídica en organizaciones laborales",30,0]
["MT-048-01-03 ","Suscripción de contratos colectivos para instituciones privadas",20,0]
["MT-045-02-06 ","Aprobación de reformas total y parcial de estatutos de organizaciones artesanales",40,0]
["MT-055-01-01 ","Aprobación de unificación de utilidades para empleadores del sector privado",40,0]
["MT-053-01-06 ","Legalización de documentos previo a la titulación artesanal bajo la modalidad propios derechos y convalidación profesional",16,0]
["MT-046-01-03 ","Rehabilitación de impedidos para laborar en el servicio público por destitución",40,0]
["MT-053-01-05 ","Legalización de documentos previo a la titulación artesanal bajo la modalidad practica profesional",16,0]
["MT-048-01-04 ","Suscripción de contrato colectivo para instituciones públicas para trabajadores bajo Código del Trabajo",20,0]
["MT-045-03-02","Registro de inclusión y/o exclusión de miembros en organizaciones sociales, fundaciones y microempresas asociativas",40,0]
["MT-045-03-06","Aprobación del estatuto y otorgamiento de la personalidad jurídica de organizaciones sociales, fundaciones y microempresas asociativas",30,0]
["MT-001-08-01","Emisión de copias certificadas de actos administrativos y normativos emitidos por el Ministerio del Trabajo",80,30]
["MT-045-01-01 ","Registro de directivas de organizaciones laborales",30,0]
["MT-016-02-01 ","Aprobación de horarios especiales de trabajo de empresas o instituciones bajo Código del Trabajo",24,0]
["MRL-008-02-01 ","Terminación de relación laboral a petición del empleador con visto bueno con suspensión de relación laboral",40,0]
["MT-047-01-01 ","Resolución del pliego de peticiones con sentencia de primera instancia",40,0]
["MT-045-03-01 ","Registro de directivas para organizaciones sociales, fundaciones y microempresas asociativas",40,0]
["MRL-005-01-01","Audiencia de diálogo social en la solución de conflictos colectivos",40,0]
["MT-034-10-01 ","Cálculo del valor correspondiente a la jubilación patronal para trabajadores de código de trabajo en el sector público",24,0]
["MRL-008-02-03 ","Terminación de relación laboral a petición del empleado con visto bueno",40,0]
["\n MT-049-04-02","Asistencia en el proceso integral de preselección de personal para instituciones públicas y empresas privadas a través del portal Red Socio Empleo",120,30]
["MRL-008-02-02 ","Terminación de relación laboral a petición del empleador con visto bueno sin suspensión de relación laboral",40,0]
["MT-040-01-01","Autorización laboral para extranjeros para trabajar en el sector público.",16,0]
["MT-030-03-01 ","Atención de denuncias laborables en el sector público",80,30]
["MT-034-10-02 ","Cálculo del valor correspondiente a la jubilación patronal para trabajadores del servicio privado",24,0]
["MT-005-02-01 ","Audiencia de mediación voluntaria para la solución de conflictos individuales de trabajo",80,30]
["MRL-012-01-01 ","Aprobación de reglamentos internos de trabajo","1.2",0]
["MT-054-01-01 ","Recuperación de claves y modificación de correo electrónico en el Sistema Único de Trabajo",0.5,0]
["MT-021-04-02 ","Registro de la Planificación de Capacitación del programa de Prevención de Riesgos Psicosociales",8.3000000000000004E-2,0]
["MT-021-01-03 ","Registro de Informe anual de actividades del comité paritario",48,30]
["MT-021-01-04 ","Aprobación de reglamentos de higiene y seguridad en el trabajo",60,30]
["MT-046-01-05","Rehabilitación de personas con impedimento laboral en el servicio público a causa de inhabilidad especial por mora.",40,0]
["MT-021-03-02 ","Registro de Promoción y Prevención de Salud en el Trabajo",8.3000000000000004E-2,0]
["MT-049-04-03 ","Asistencia en la preselección de personal para instituciones públicas y empresas privadas a través del portal Red Socio Empleo mediante el envío de hojas de vida",24,0]
["MT-021-04-01","Registro de Prevención de Amenazas Naturales y Riesgos Antrópicos",8.3000000000000004E-2,0]
["N/A","Acceso a la Información Pública del Ministerio de Trabajo",40,0]
["MT-049-04-01","Publicación de ofertas laborales en el portal Red Socio Empleo a través de las cuentas de los empleadores",16,0]
["MT-044-04-01 ","Registro del pago de multas por sanciones",0.16,0]
["MT-021-01-06 ","Registro de programas de prevención de uso y consumo de drogas en espacios laborales y programa de prevención de riesgo psicosocial",8.3000000000000004E-2,0]
["MT-030-03-02 ","Atención de denuncias laborales en el sector privado",40,0]
["MT-021-01-02 ","Registro de organismos paritarios y sus renovaciones",48,30]
["MT-021-01-05 ","Registro de la declaración de los riesgos laborales y su plan de acción",0.16700000000000001,0]
["\n MT-021-02-03 ","Registro de trabajadores capacitados en materia de seguridad y salud en el trabajo.",8.3000000000000004E-2,0]
["MRL-001-01-08","Emisión de oficio de validación de no tener impedimento para ejercer cargo público a la fecha",8,0]
["MT-021-02-02","Registro de capacitaciones realizadas en materia de seguridad y salud en el trabajo",8.3000000000000004E-2,0]
["MT-044-03-11","Registro del pago de decimotercera y decimocuarta remuneración para el servicio doméstico",1.6E-2,0]
["MT-021-02-01 ","Registro de la planificación de capacitaciones en materia de seguridad y salud en el trabajo",8.3000000000000004E-2,0]
["MT-021-03-01 ","Registro de Vigilancia de la Salud",8.3000000000000004E-2,0]
["MT-044-03-10 ","Registro del pago de Participación de Utilidades",1.6E-2,0]
["MRL-001-01-03 ","Emisión de certificado de no tener impedimento para ejercer cargo público para extranjeros no residentes",24,0]
["MT-044-03-12","Registro del pago de decimocuarta remuneración",1.6E-2,0]
["MRL-001-01-09 ","Emisión de certificado de relación de dependencia laboral con el sector público",3.3000000000000002E-2,0]
["MT-044-03-06","Registro del pago de decimotercera remuneración",1.6E-2,0]
["MT-044-05-01 ","Registro de datos de trabajador para la vinculación laboral",1.6E-2,0]
["MT-044-05-02 ","Registro de actas de finiquito",1.6E-2,0]
["MRL-001-01-01","Emisión de certificado de no tener impedimento para ejercer cargo público para ecuatorianos y extranjeros residentes",0.16700000000000001,0]
["SETEC-014-04-04","Ampliación por incremento de instructores y/o cambio de coordiador pedagógico bajo las mismas áreas, especialidades, cursos o perfiles",0.5,0]
["SETEC-016-01-04","Emisión de credenciales de capacitador independiente",0.2,0]
["SETEC-014-05-09","Solicitud de la renovación de la calificación de Instituciones de Educación Superior como Operadores de Capacitación por capacitación continua y competencias laborales",0.3,0]
["SETEC-015-01-08","Solicitud de modificación al reconocimiento de organismos evaluadores de la conformidad para brindar servicios de certificación de personas",8,0]
["SETEC-014-05-08","Solicitud de renovación de la calificación de Instituciones de Educación Superior como Operadores de Capacitación por competencias laborales",0.3,0]
["SETEC-014-05-04","Solicitud de renovación de la calificación de Instituciones Públicas como Operadores de Capacitación Continua",0.3,0]
["SETEC-014-05-05","Solicitud de renovación de la calificación de Instituciones Públicas como Operadores de Capacitación por competencias laborales",0.3,0]
["SETEC-014-05-06","Solicitud de renovación de la calificación deInstituciones Públicas como Operadores de Capacitación por capacitación continua y competencias laborales",0.3,0]
["SETEC-015-01-01","Reconocimiento de personas naturales como organismos evaluadores de la conformidad para brindar servicios de certificación de personas",3,0]
["SETEC-014-03-03","Solicitud de modificación de la calificación de Instituciones de Educación Superior como Operadores de Capacitación",2,0]
["SETEC-014-05-07","Solicitud de renovación de la calificación de Instituciones de Educación Superior como Operadores de Capacitación como Operadores de Capacitación Continua",0.3,0]
["SETEC-014-04-02","Ampliación por nuevos cursos e instructores por competencias laborales",2,0]
["SETEC-014-02-08","Calificación de Instituciones de Educación Superior como Operadores de Capacitación por competencias laborales",3,0]
["SETEC-014-02-05","Calificación de Instituciones Públicas como Operadores de Capacitación por competencias laborales",2,0]
["SETEC-015-01-06","Renovación al reconocimiento de organismos evaluadores de la conformidad de Instituciones de Educación Superior para brindar servicios de certificación de personas",3,0]
["SETEC-015-01-04","Renovación al reconocimiento de organismos evaluadores de la conformidad de personas naturales para brindar servicios de certificación de personas",3,0]
["SETEC-014-03-02","Solicitud de modificación de la calificación de Instituciones Públicas como Operadores de Capacitación",2,0]
["SETEC-014-05-02","Solicitud de renovación de la calificación de Personas Naturales, Personas Jurídicas y Empresas Públicas como Operadores de Capacitación por competencias laborales",0.3,0]
["SETEC-015-01-02","Reconocimiento de organismos evaluadores de la conformidad de Instituciones de Educación Superior para brindar servicios de certificación de personas",3,0]
["SETEC-017-01-02","Solicitud de auditoría al cumplimiento de los estándares de calificación",1,0]
["SETEC-017-02-02","Solicitud de auditoría al cumplimiento del sistema de gestión de certificación de personas",1,0]
["SETEC-017-01-03","Quejas y sugerencias sobre la prestacción de servicios de capacitación y certificación por parte de terceros",3,0]
["SETEC-014-02-02","Calificación de Personas Naturales, Personas Jurídicas y Empresas Públicas como Operadores de Capacitación por competencias laborales",2,0]
["SETEC-014-02-04","Calificación de Instituciones Públicas como Operadores de Capacitación Continua",2,0]
["SETEC-010-01-02","Elaborar o actualizar perfiles ocupacionales para capacitación y certificación de personas por competancias laborales",40,0]
["SETEC-015-01-03","Reconocimiento de organismos evaluadores de la conformidad de personas jurídicas para brindar servicios de certificación de personas",3,0]
["SETEC-014-03-01","Solicitud de modificación de la calificación de Personas Naturales, Personas Jurídicas y Empresas Públicas como Operadores de Capacitación",2,0]
["SETEC-015-01-05","Renovación al reconocimiento de organismos evaluadores de la conformidad de personas jurídicas para brindar servicios de certificación de personas",3,0]
["SETEC-014-02-07","Calificación de Instituciones de Educación Superior como Operadores de Capacitación Continua",2,0]
["SETEC-014-05-01","Solicitud de renovación de la calificación de Personas Naturales, Personas Jurídicas y Empresas Públicas como Operadores de Capacitación de Capacitación Continua",0.3,0]
["SETEC-014-02-09","Calificación de Instituciones de Educación Superior como Operadores de Capacitación por capacitación continua y competencias laborales",3,0]
["SETEC-016-01-02","Renovación de la calificación como capacitador independiente",15,0]
["SETEC-014-05-03","Solicitud de renovación de la calificación de Personas Naturales, Personas Jurídicas y Empresas Públicas como Operadores de Capacitación por capacitación continua y competencias laborales",0.3,0]
["SETEC-014-02-06","Calificación de Instituciones Públicas como Operadores de Capacitación por capacitación continua y competencias laborales",3,0]
["SETEC-017-03-02","Quejas y sugerencias sobre el mal uso de marca SETEC por parte de terceros",2,0]
["SETEC-010-02-01","Elaboración de esquemas para la certificación de personas bajo competencias laborales",40,0]
["SETEC-010-03-01","Elaborar instrumentos para la certificación de personas bajo competencias laborales",40,0]
["SETEC-014-04-03","Ampliación por nuevos cursos e instructores por capacitación continua y competencias laborales",2,0]
["SETEC-017-02-01","Solicitud de asesoramiento técnico para el proceso de auditoría al sistema de gestión de certificación de personas",1,0]
["SETEC-017-01-01","Solicitud de asesoramiento técnico para el proceso de auditoría al cumplimiento de los estándares de calificación",1,0]
["SETEC-014-04-01","Ampliación por nuevos cursos e instructores por capacitación continua",2,0]
["SETEC-012-01-01","Asesoramiento metodológico en la elaboración de diseños y estructuras curriculares",1,0]
["SETEC-016-01-03","Ampliación de la calificación como capacitador independiente",48,30]
["SETEC-015-01-09","Asistencia técnica en el proceso de reconocimiento de organismos certificadores de personas",1,0]
["SETEC-015-01-07","Ampliación al reconocimiento de organismos evaluadores de la conformidad para brindar servicios de certificación de personas",3,0]
["SETEC-014-02-01","Calificación de Personas Naturales, Personas Jurídicas y Empresas Públicas como Operadores de Capacitación de Capacitación Continua",2,0]
["SETEC-014-02-03","Calificación de Personas Naturales, Personas Jurídicas y Empresas Públicas como Operadores de Capacitación continua y competencias laborales",2,0]
["SETEC-016-01-01","Calificación como capacitador independiente",48,30]
["SETEC-017-03-01","Solicitud de aprobación de productos comunicacionales",0.3,0]
["SETEC-016-01-05","Asistencia técnica en el proceso de calificación como capacitador independiente",0.1,0]
["SETEC-017-03-04","Solicitud de sellado de certificados emitidos por los operadores de capacitación de capacitación y organismos evaluadores de la conformidad",1,0]
["SETEC-009-02-01","Consulta de análisis y estudios sobre capacitación y certificación de personas",8,0]

{"sheet":"CANAL ATENCIÓN","index":6,"n_rows":134,"n_cols":12,"rows_kept":134,"cut":false,"hidden":false,"merged":[[0,0,0,3],[1,0,1,3]]}
["PRIORIZACIÓN DE TRÁMITES ADMINISTRATIVOS"]
["CANAL DE ATENCIÓN"]
[null,null,null,null,null,null,null,null,"Totalmente en Línea",null,null,0]
["IDENTIFICADOR","TRÁMITE","CANAL ATENCIÓN","PUNTUACIÓN",null,null,null,null,"No se completa totalmente en línea.",null,null,10]
["MT-021-01-01","Aprobación de planos para la construcción, habilitación de fábricas y/o campamentos","No se completa totalmente en línea.",{"$f":"IF(ISBLANK(C5),\"\",IF(C5=\"Totalmente en línea\",0,IF(C5=\"Inicia en línea\",6,10)))","v":10}]
["MT-048-01-05 ","Suscripción de actas transaccionales para instituciones privadas","No se completa totalmente en línea.",{"$f":"IF(ISBLANK(C6),\"\",IF(C6=\"Totalmente en línea\",0,IF(C6=\"Inicia en línea\",6,10)))","v":10}]
["MT-045-03-04","Aprobación de disolución de organizaciones sociales, fundaciones y microempresas asociativas","Totalmente en Línea",0]
["MT-045-01-02 ","Registro de la marginación de organizaciones laborales","Totalmente en Línea",0]
["\n MT-047-01-02 ","Resolución del pliego de peticiones con sentencia de segunda instancia","No se completa totalmente en línea.",10]
["MT-045-02-07 ","Aprobación de disolución voluntaria de personería jurídica de organizaciones artesanales","Totalmente en Línea",0]
["MT-053-02-01","Legalización de documentos FEDESOMEC previo al inicio de cursos","Totalmente en Línea",0]
["MT-045-02-01 ","Registro de ingreso, retiro o exclusión de socios de las organizaciones artesanales","Totalmente en Línea",0]
["MT-046-01-02","Rehabilitación de personas con impedimento laboral en el servicio público a causa de retiro con compensación por retiro voluntario, venta de renuncia o figuras similares","Totalmente en Línea",0]
["MRL-015-01-03 ","Refrendación de títulos nuevos y canje de la Federación Ecuatoriana de Operadores y Mecánicos de Equipo Caminero (FEDESOMEC)","Totalmente en Línea",0]
["\n MT-048-03-02","Resolución de reclamación colectiva presentada por instituciones privadas por la falta de negociación del contrato colectivo","Totalmente en Línea",0]
["MT-046-01-08 ","Rehabilitación de personas con impedimento laboral en el servicio público a causa de interdicción judicial","Totalmente en Línea",0]
["MT-046-01-06","Rehabilitación de personas con impedimento laboral en el servicio público a causa de compra de renuncia con indemnización.","Totalmente en Línea",0]
["MT-046-01-01 ","Rehabilitación de impedidos para laborar en el servicio público por indemnización por supresión de puestos","Totalmente en Línea",0]
["MT-045-02-04 ","Registro de directivas de las organizaciones artesanales","Totalmente en Línea",0]
["MT-048-01-06 ","Suscripción de actas transaccionales para instituciones públicas para trabajadores bajo Código del Trabajo","Totalmente en Línea",0]
["MT-016-02-02","Aprobación de extensión de horarios de trabajo (Suplementarias y Extraordinarias)","Totalmente en Línea",0]
["MT-045-01-07","Aprobación de reformas a estatutos de organizaciones laborales","Totalmente en Línea",0]
["MT-045-03-05","Aprobación de reformas al estatuto de organizaciones sociales, fundaciones y microempresas asociativas","Totalmente en Línea",0]
["MT-048-03-01","Resolución de reclamación colectiva presentada por instituciones públicas por la falta de negociación del contrato colectivo bajo Código de Trabajo","Totalmente en Línea",0]
["MRL-015-01-02","Refrendación de títulos nuevos y canje de Centros de Formación Artesanal y Organizaciones Artesanales","Totalmente en Línea",0]
["MT-045-01-03","Registro de inclusión y/o exclusión de socios de organizaciones laborales","Totalmente en Línea",0]
["MT-045-02-05 ","Aprobación de estatutos y concesión de personería jurídica de organizaciones artesanales","Totalmente en Línea",0]
["MT-045-01-08 ","Aprobación de estatutos y personería jurídica en organizaciones laborales","Totalmente en Línea",0]
["MT-048-01-03 ","Suscripción de contratos colectivos para instituciones privadas","Totalmente en Línea",0]
["MT-045-02-06 ","Aprobación de reformas total y parcial de estatutos de organizaciones artesanales","Totalmente en Línea",0]
["MT-055-01-01 ","Aprobación de unificación de utilidades para empleadores del sector privado","Totalmente en Línea",0]
["MT-053-01-06 ","Legalización de documentos previo a la titulación artesanal bajo la modalidad propios derechos y convalidación profesional","Totalmente en Línea",0]
["MT-046-01-03 ","Rehabilitación de impedidos para laborar en el servicio público por destitución","Totalmente en Línea",0]
["MT-053-01-05 ","Legalización de documentos previo a la titulación artesanal bajo la modalidad practica profesional","Totalmente en Línea",0]
["MT-048-01-04 ","Suscripción de contrato colectivo para instituciones públicas para trabajadores bajo Código del Trabajo","Totalmente en Línea",0]
["MT-045-03-02","Registro de inclusión y/o exclusión de miembros en organizaciones sociales, fundaciones y microempresas asociativas","Totalmente en Línea",0]
["MT-045-03-06","Aprobación del estatuto y otorgamiento de la personalidad jurídica de organizaciones sociales, fundaciones y microempresas asociativas","Totalmente en Línea",0]
["MT-001-08-01","Emisión de copias certificadas de actos administrativos y normativos emitidos por el Ministerio del Trabajo","Totalmente en Línea",0]
["MT-045-01-01 ","Registro de directivas de organizaciones laborales","Totalmente en Línea",0]
["MT-016-02-01 ","Aprobación de horarios especiales de trabajo de empresas o instituciones bajo Código del Trabajo","Totalmente en Línea",0]
["MRL-008-02-01 ","Terminación de relación laboral a petición del empleador con visto bueno con suspensión de relación laboral","Totalmente en Línea",0]
["MT-047-01-01 ","Resolución del pliego de peticiones con sentencia de primera instancia","Totalmente en Línea",0]
["MT-045-03-01 ","Registro de directivas para organizaciones sociales, fundaciones y microempresas asociativas","Totalmente en Línea",0]
["MRL-005-01-01","Audiencia de diálogo social en la solución de conflictos colectivos","No se completa totalmente en línea.",10]
["MT-034-10-01 ","Cálculo del valor correspondiente a la jubilación patronal para trabajadores de código de trabajo en el sector público","Totalmente en Línea",0]
["MRL-008-02-03 ","Terminación de relación laboral a petición del empleado con visto bueno","Totalmente en Línea",0]
["\n MT-049-04-02","Asistencia en el proceso integral de preselección de personal para instituciones públicas y empresas privadas a través del portal Red Socio Empleo","Totalmente en Línea",0]
["MRL-008-02-02 ","Terminación de relación laboral a petición del empleador con visto bueno sin suspensión de relación laboral","Totalmente en Línea",0]
["MT-040-01-01","Autorización laboral para extranjeros para trabajar en el sector público.","Totalmente en Línea",0]
["MT-030-03-01 ","Atención de denuncias laborables en el sector público","No se completa totalmente en línea.",10]
["MT-034-10-02 ","Cálculo del valor correspondiente a la jubilación patronal para trabajadores del servicio privado","Totalmente en Línea",0]
["MT-005-02-01 ","Audiencia de mediación voluntaria para la solución de conflictos individuales de trabajo","Totalmente en Línea",0]
["MRL-012-01-01 ","Aprobación de reglamentos internos de trabajo","Totalmente en Línea",0]
["MT-054-01-01 ","Recuperación de claves y modificación de correo electrónico en el Sistema Único de Trabajo","Totalmente en Línea",0]
["MT-021-04-02 ","Registro de la Planificación de Capacitación del programa de Prevención de Riesgos Psicosociales","Totalmente en Línea",0]
["MT-021-01-03 ","Registro de Informe anual de actividades del comité paritario","Totalmente en Línea",0]
["MT-021-01-04 ","Aprobación de reglamentos de higiene y seguridad en el trabajo","Totalmente en Línea",0]
["MT-046-01-05","Rehabilitación de personas con impedimento laboral en el servicio público a causa de inhabilidad especial por mora.","Totalmente en Línea",0]
["MT-021-03-02 ","Registro de Promoción y Prevención de Salud en el Trabajo","Totalmente en Línea",0]
["MT-049-04-03 ","Asistencia en la preselección de personal para instituciones públicas y empresas privadas a través del portal Red Socio Empleo mediante el envío de hojas de vida","Totalmente en Línea",0]
["MT-021-04-01","Registro de Prevención de Amenazas Naturales y Riesgos Antrópicos","Totalmente en Línea",0]
["N/A","Acceso a la Información Pública del Ministerio de Trabajo","Totalmente en Línea",0]
["MT-049-04-01","Publicación de ofertas laborales en el portal Red Socio Empleo a través de las cuentas de los empleadores","Totalmente en Línea",0]
["MT-044-04-01 ","Registro del pago de multas por sanciones","No se completa totalmente en línea.",10]
["MT-021-01-06 ","Registro de programas de prevención de uso y consumo de drogas en espacios laborales y programa de prevención de riesgo psicosocial","Totalmente en Línea",0]
["MT-030-03-02 ","Atención de denuncias laborales en el sector privado","No se completa totalmente en línea.",10]
["MT-021-01-02 ","Registro de organismos paritarios y sus renovaciones","Totalmente en Línea",0]
["MT-021-01-05 ","Registro de la declaración de los riesgos laborales y su plan de acción","Totalmente en Línea",0]
["\n MT-021-02-03 ","Registro de trabajadores capacitados en materia de seguridad y salud en el trabajo.","Totalmente en Línea",0]
["MRL-001-01-08","Emisión de oficio de validación de no tener impedimento para ejercer cargo público a la fecha","Totalmente en Línea",{"$f":"IF(ISBLANK(C70),\"\",IF(C70=\"Totalmente en línea\",0,IF(C70=\"Inicia en línea\",6,10)))","v":0}]
["MT-021-02-02","Registro de capacitaciones realizadas en materia de seguridad y salud en el trabajo","Totalmente en Línea",0]
["MT-044-03-11","Registro del pago de decimotercera y decimocuarta remuneración para el servicio doméstico","Totalmente en Línea",0]
["MT-021-02-01 ","Registro de la planificación de capacitaciones en materia de seguridad y salud en el trabajo","Totalmente en Línea",0]
["MT-021-03-01 ","Registro de Vigilancia de la Salud","Totalmente en Línea",0]
["MT-044-03-10 ","Registro del pago de Participación de Utilidades","Totalmente en Línea",0]
["MRL-001-01-03 ","Emisión de certificado de no tener impedimento para ejercer cargo público para extranjeros no residentes","Totalmente en Línea",0]
["MT-044-03-12","Registro del pago de decimocuarta remuneración","Totalmente en Línea",0]
["MRL-001-01-09 ","Emisión de certificado de relación de dependencia laboral con el sector público","Totalmente en Línea",0]
["MT-044-03-06","Registro del pago de decimotercera remuneración","Totalmente en Línea",0]
["MT-044-05-01 ","Registro de datos de trabajador para la vinculación laboral","Totalmente en Línea",0]
["MT-044-05-02 ","Registro de actas de finiquito","Totalmente en Línea",0]
["MRL-001-01-01","Emisión de certificado de no tener impedimento para ejercer cargo público para ecuatorianos y extranjeros residentes","Totalmente en Línea",0]
["SETEC-014-04-04","Ampliación por incremento de instructores y/o cambio de coordiador pedagógico bajo las mismas áreas, especialidades, cursos o perfiles","No se completa totalmente en línea.",{"$f":"IF(ISBLANK(C83),\"\",IF(C83=\"Totalmente en línea\",0,IF(C83=\"Inicia en línea\",6,10)))","v":10}]
["SETEC-016-01-04","Emisión de credenciales de capacitador independiente","No se completa totalmente en línea.",{"$f":"IF(ISBLANK(C84),\"\",IF(C84=\"Totalmente en línea\",0,IF(C84=\"Inicia en línea\",6,10)))","v":10}]
["SETEC-014-05-09","Solicitud de la renovación de la calificación de Instituciones de Educación Superior como Operadores de Capacitación por capacitación continua y competencias laborales","No se completa totalmente en línea.",10]
["SETEC-015-01-08","Solicitud de modificación al reconocimiento de organismos evaluadores de la conformidad para brindar servicios de certificación de personas","No se completa totalmente en línea.",10]
["SETEC-014-05-08","Solicitud de renovación de la calificación de Instituciones de Educación Superior como Operadores de Capacitación por competencias laborales","No se completa totalmente en línea.",10]
["SETEC-014-05-04","Solicitud de renovación de la calificación de Instituciones Públicas como Operadores de Capacitación Continua","No se completa totalmente en línea.",10]
["SETEC-014-05-05","Solicitud de renovación de la calificación de Instituciones Públicas como Operadores de Capacitación por competencias laborales","No se completa totalmente en línea.",10]
["SETEC-014-05-06","Solicitud de renovación de la calificación deInstituciones Públicas como Operadores de Capacitación por capacitación continua y competencias laborales","No se completa totalmente en línea.",10]
["SETEC-015-01-01","Reconocimiento de personas naturales como organismos evaluadores de la conformidad para brindar servicios de certificación de personas","No se completa totalmente en línea.",10]
["SETEC-014-03-03","Solicitud de modificación de la calificación de Instituciones de Educación Superior como Operadores de Capacitación","No se completa totalmente en línea.",10]
["SETEC-014-05-07","Solicitud de renovación de la calificación de Instituciones de Educación Superior como Operadores de Capacitación como Operadores de Capacitación Continua","No se completa totalmente en línea.",10]
["SETEC-014-04-02","Ampliación por nuevos cursos e instructores por competencias laborales","No se completa totalmente en línea.",10]
["SETEC-014-02-08","Calificación de Instituciones de Educación Superior como Operadores de Capacitación por competencias laborales","No se completa totalmente en línea.",10]
["SETEC-014-02-05","Calificación de Instituciones Públicas como Operadores de Capacitación por competencias laborales","No se completa totalmente en línea.",10]
["SETEC-015-01-06","Renovación al reconocimiento de organismos evaluadores de la conformidad de Instituciones de Educación Superior para brindar servicios de certificación de personas","No se completa totalmente en línea.",10]
["SETEC-015-01-04","Renovación al reconocimiento de organismos evaluadores de la conformidad de personas naturales para brindar servicios de certificación de personas","No se completa totalmente en línea.",10]
["SETEC-014-03-02","Solicitud de modificación de la calificación de Instituciones Públicas como Operadores de Capacitación","No se completa totalmente en línea.",10]
["SETEC-014-05-02","Solicitud de renovación de la calificación de Personas Naturales, Personas Jurídicas y Empresas Públicas como Operadores de Capacitación por competencias laborales","No se completa totalmente en línea.",10]
["SETEC-015-01-02","Reconocimiento de organismos evaluadores de la conformidad de Instituciones de Educación Superior para brindar servicios de certificación de personas","No se completa totalmente en línea.",10]
["SETEC-017-01-02","Solicitud de auditoría al cumplimiento de los estándares de calificación","No se completa totalmente en línea.",10]
["SETEC-017-02-02","Solicitud de auditoría al cumplimiento del sistema de gestión de certificación de personas","No se completa totalmente en línea.",10]
["SETEC-017-01-03","Quejas y sugerencias sobre la prestacción de servicios de capacitación y certificación por parte de terceros","Totalmente en Línea",0]
["SETEC-014-02-02","Calificación de Personas Naturales, Personas Jurídicas y Empresas Públicas como Operadores de Capacitación por competencias laborales","No se completa totalmente en línea.",10]
["SETEC-014-02-04","Calificación de Instituciones Públicas como Operadores de Capacitación Continua","No se completa totalmente en línea.",10]
["SETEC-010-01-02","Elaborar o actualizar perfiles ocupacionales para capacitación y certificación de personas por competancias laborales","No se completa totalmente en línea.",10]
["SETEC-015-01-03","Reconocimiento de organismos evaluadores de la conformidad de personas jurídicas para brindar servicios de certificación de personas","No se completa totalmente en línea.",10]
["SETEC-014-03-01","Solicitud de modificación de la calificación de Personas Naturales, Personas Jurídicas y Empresas Públicas como Operadores de Capacitación","No se completa totalmente en línea.",10]
["SETEC-015-01-05","Renovación al reconocimiento de organismos evaluadores de la conformidad de personas jurídicas para brindar servicios de certificación de personas","No se completa totalmente en línea.",10]
["SETEC-014-02-07","Calificación de Instituciones de Educación Superior como Operadores de Capacitación Continua","No se completa totalmente en línea.",10]
["SETEC-014-05-01","Solicitud de renovación de la calificación de Personas Naturales, Personas Jurídicas y Empresas Públicas como Operadores de Capacitación de Capacitación Continua","No se completa totalmente en línea.",10]
["SETEC-014-02-09","Calificación de Instituciones de Educación Superior como Operadores de Capacitación por capacitación continua y competencias laborales","No se completa totalmente en línea.",10]
["SETEC-016-01-02","Renovación de la calificación como capacitador independiente","Totalmente en Línea",0]
["SETEC-014-05-03","Solicitud de renovación de la calificación de Personas Naturales, Personas Jurídicas y Empresas Públicas como Operadores de Capacitación por capacitación continua y competencias laborales","No se completa totalmente en línea.",10]
["SETEC-014-02-06","Calificación de Instituciones Públicas como Operadores de Capacitación por capacitación continua y competencias laborales","No se completa totalmente en línea.",10]
["SETEC-017-03-02","Quejas y sugerencias sobre el mal uso de marca SETEC por parte de terceros","Totalmente en Línea",0]
["SETEC-010-02-01","Elaboración de esquemas para la certificación de personas bajo competencias laborales","No se completa totalmente en línea.",10]
["SETEC-010-03-01","Elaborar instrumentos para la certificación de personas bajo competencias laborales","No se completa totalmente en línea.",10]
["SETEC-014-04-03","Ampliación por nuevos cursos e instructores por capacitación continua y competencias laborales","No se completa totalmente en línea.",10]
["SETEC-017-02-01","Solicitud de asesoramiento técnico para el proceso de auditoría al sistema de gestión de certificación de personas","No se completa totalmente en línea.",10]
["SETEC-017-01-01","Solicitud de asesoramiento técnico para el proceso de auditoría al cumplimiento de los estándares de calificación","No se completa totalmente en línea.",10]
["SETEC-014-04-01","Ampliación por nuevos cursos e instructores por capacitación continua","No se completa totalmente en línea.",10]
["SETEC-012-01-01","Asesoramiento metodológico en la elaboración de diseños y estructuras curriculares","Totalmente en Línea",0]
["SETEC-016-01-03","Ampliación de la calificación como capacitador independiente","Totalmente en Línea",0]
["SETEC-015-01-09","Asistencia técnica en el proceso de reconocimiento de organismos certificadores de personas","No se completa totalmente en línea.",10]
["SETEC-015-01-07","Ampliación al reconocimiento de organismos evaluadores de la conformidad para brindar servicios de certificación de personas","No se completa totalmente en línea.",10]
["SETEC-014-02-01","Calificación de Personas Naturales, Personas Jurídicas y Empresas Públicas como Operadores de Capacitación de Capacitación Continua","No se completa totalmente en línea.",10]
["SETEC-014-02-03","Calificación de Personas Naturales, Personas Jurídicas y Empresas Públicas como Operadores de Capacitación continua y competencias laborales","No se completa totalmente en línea.",10]
["SETEC-016-01-01","Calificación como capacitador independiente","Totalmente en Línea",0]
["SETEC-017-03-01","Solicitud de aprobación de productos comunicacionales","Totalmente en Línea",0]
["SETEC-016-01-05","Asistencia técnica en el proceso de calificación como capacitador independiente","No se completa totalmente en línea.",10]
["SETEC-017-03-04","Solicitud de sellado de certificados emitidos por los operadores de capacitación de capacitación y organismos evaluadores de la conformidad","Totalmente en Línea",0]
["SETEC-009-02-01","Consulta de análisis y estudios sobre capacitación y certificación de personas","Totalmente en Línea",0]

{"sheet":"RESUMEN","index":7,"n_rows":133,"n_cols":25,"rows_kept":133,"cut":false,"hidden":false,"merged":[[1,0,2,0],[1,1,2,1],[1,2,2,2],[1,3,2,3],[1,4,2,4],[1,9,1,10],[1,11,1,12],[1,13,2,13],[0,2,0,6],[0,7,0,12],[1,5,2,5],[1,6,2,6],[1,7,1,8]]}
[null,null,"BÁSICOS",null,null,null,null,"ADICIONALES"]
["ID trámite","Nombre del trámite","Demanda","Quejas","Costo para administración","Tiempo de respuesta","Canal de atención","Necesidades ciudadanas",null,"Susceptibilidad a corrupción",null,"Volumen de devoluciones",null,"PUNTAJE TOTAL"]
[null,null,null,null,null,null,null,"Criterio","Puntuación","Criterio","Puntuación","Criterio","Puntuación",null,null,null,null,null,null,null,"demanda",0,3,6,10]
["MT-021-01-01","Aprobación de planos para la construcción, habilitación de fábricas y/o campamentos",0,0,20,0,30,"NO",{"$f":"IF(H4=\"SI\",5,0)","v":0},"NO",{"$f":"IF(J4=\"SI\",10,0)","v":0},"NO",{"$f":"IF(L4=\"SI\",5,0)","v":0},{"$f":"SUM(C4:G4,I4,K4,M4)","v":50},245.65,null,null,null,null,null,"quejas",0,4,10]
["MT-048-01-05 ","Suscripción de actas transaccionales para instituciones privadas",0,0,10,0,0,"NO",{"$f":"IF(H5=\"SI\",5,0)","v":0},"NO",{"$f":"IF(J5=\"SI\",10,0)","v":0},"NO",{"$f":"IF(L5=\"SI\",5,0)","v":0},{"$f":"SUM(C5:G5,I5,K5,M5)","v":10},159.36000000000001,null,null,null,null,null,"cpa",5,10,20]
["MT-045-03-04","Aprobación de disolución de organizaciones sociales, fundaciones y microempresas asociativas",3,0,10,30,0,"NO",0,"NO",0,"NO",0,43,150.9,null,null,null,null,null,"tr",0,30]
["MT-045-01-02 ","Registro de la marginación de organizaciones laborales",3,0,10,30,0,"NO",0,"NO",0,"NO",0,43,150.6,null,null,null,null,null,"ca",0,10]
["\n MT-047-01-02 ","Resolución del pliego de peticiones con sentencia de segunda instancia",3,0,10,30,10,"NO",0,"NO",0,"NO",0,53,243.48,null,null,null,null,null,null,"SI","NO"]
["MT-045-02-07 ","Aprobación de disolución voluntaria de personería jurídica de organizaciones artesanales",3,0,10,30,0,"NO",0,"NO",0,"NO",0,43,160.43]
["MT-053-02-01","Legalización de documentos FEDESOMEC previo al inicio de cursos",3,0,10,30,0,"NO",0,"NO",0,"NO",0,43,30]
["MT-045-02-01 ","Registro de ingreso, retiro o exclusión de socios de las organizaciones artesanales",3,0,10,0,30,"NO",0,"NO",0,"NO",0,43,237.18]
["MT-046-01-02","Rehabilitación de personas con impedimento laboral en el servicio público a causa de retiro con compensación por retiro voluntario, venta de renuncia o figuras similares",3,0,10,0,0,"NO",0,"NO",0,"NO",0,13,158.22999999999999]
["MRL-015-01-03 ","Refrendación de títulos nuevos y canje de la Federación Ecuatoriana de Operadores y Mecánicos de Equipo Caminero (FEDESOMEC)",3,0,10,0,0,"NO",0,"NO",0,"NO",0,13,155.25]
["\n MT-048-03-02","Resolución de reclamación colectiva presentada por instituciones privadas por la falta de negociación del contrato colectivo",3,0,20,30,0,"NO",0,"NO",0,"NO",0,53,212.63]
["MT-046-01-08 ","Rehabilitación de personas con impedimento laboral en el servicio público a causa de interdicción judicial",3,0,5,0,0,"NO",0,"NO",0,"NO",0,8,153.47999999999999]
["MT-046-01-06","Rehabilitación de personas con impedimento laboral en el servicio público a causa de compra de renuncia con indemnización.",3,0,5,0,0,"NO",0,"NO",0,"NO",0,8,157.85]
["MT-046-01-01 ","Rehabilitación de impedidos para laborar en el servicio público por indemnización por supresión de puestos",3,0,5,0,0,"NO",0,"NO",0,"NO",0,8,266.35000000000002]
["MT-045-02-04 ","Registro de directivas de las organizaciones artesanales",3,0,20,0,0,"NO",0,"NO",0,"NO",0,23,166.56]
["MT-048-01-06 ","Suscripción de actas transaccionales para instituciones públicas para trabajadores bajo Código del Trabajo",3,0,10,0,0,"NO",0,"NO",0,"NO",0,13,195.38]
["MT-016-02-02","Aprobación de extensión de horarios de trabajo (Suplementarias y Extraordinarias)",3,0,10,30,0,"NO",0,"NO",0,"NO",0,43,100.5]
["MT-045-01-07","Aprobación de reformas a estatutos de organizaciones laborales",3,0,10,30,0,"NO",0,"NO",0,"NO",0,43,158.4]
["MT-045-03-05","Aprobación de reformas al estatuto de organizaciones sociales, fundaciones y microempresas asociativas",3,0,10,30,0,"NO",0,"NO",0,"NO",0,43,152.13999999999999]
["MT-048-03-01","Resolución de reclamación colectiva presentada por instituciones públicas por la falta de negociación del contrato colectivo bajo Código de Trabajo",3,0,20,30,0,"NO",0,"NO",0,"NO",0,53,223.8]
["MRL-015-01-02","Refrendación de títulos nuevos y canje de Centros de Formación Artesanal y Organizaciones Artesanales",3,0,20,0,0,"NO",0,"NO",0,"NO",0,23,61.2]
["MT-045-01-03","Registro de inclusión y/o exclusión de socios de organizaciones laborales",3,0,10,30,0,"NO",0,"NO",0,"NO",0,43,166.26]
["MT-045-02-05 ","Aprobación de estatutos y concesión de personería jurídica de organizaciones artesanales",3,0,10,30,0,"NO",0,"NO",0,"NO",0,43,114.6]
["MT-045-01-08 ","Aprobación de estatutos y personería jurídica en organizaciones laborales",3,0,10,30,0,"NO",0,"NO",0,"NO",0,43,114.6]
["MT-048-01-03 ","Suscripción de contratos colectivos para instituciones privadas",3,0,10,30,0,"NO",0,"NO",0,"NO",0,43,162.55000000000001]
["MT-045-02-06 ","Aprobación de reformas total y parcial de estatutos de organizaciones artesanales",3,0,10,30,0,"NO",0,"NO",0,"NO",0,43,114.3]
["MT-055-01-01 ","Aprobación de unificación de utilidades para empleadores del sector privado",3,0,10,30,0,"NO",0,"NO",0,"NO",0,43,151.82249999999999]
["MT-053-01-06 ","Legalización de documentos previo a la titulación artesanal bajo la modalidad propios derechos y convalidación profesional",6,0,10,30,0,"NO",0,"NO",0,"NO",0,46,65.25]
["MT-046-01-03 ","Rehabilitación de impedidos para laborar en el servicio público por destitución",6,0,5,0,0,"NO",0,"NO",0,"NO",0,11,199.35]
["MT-053-01-05 ","Legalización de documentos previo a la titulación artesanal bajo la modalidad practica profesional",6,0,20,30,0,"NO",0,"NO",0,"NO",0,56,68.25]
["MT-048-01-04 ","Suscripción de contrato colectivo para instituciones públicas para trabajadores bajo Código del Trabajo",6,0,20,30,0,"NO",0,"NO",0,"NO",0,56,178.14999999999998]
["MT-045-03-02","Registro de inclusión y/o exclusión de miembros en organizaciones sociales, fundaciones y microempresas asociativas",6,0,20,30,0,"NO",0,"NO",0,"NO",0,56,150.9]
["MT-045-03-06","Aprobación del estatuto y otorgamiento de la personalidad jurídica de organizaciones sociales, fundaciones y microempresas asociativas",6,0,20,30,0,"NO",0,"NO",0,"NO",0,56,114]
["MT-001-08-01","Emisión de copias certificadas de actos administrativos y normativos emitidos por el Ministerio del Trabajo",6,0,10,30,30,"NO",0,"NO",0,"NO",0,76,311.83749999999998]
["MT-045-01-01 ","Registro de directivas de organizaciones laborales",6,0,10,30,0,"NO",0,"NO",0,"NO",0,46,113.7]
["MT-016-02-01 ","Aprobación de horarios especiales de trabajo de empresas o instituciones bajo Código del Trabajo",6,4,10,30,0,"NO",0,"NO",0,"NO",0,50,100.19999999999999]
["MRL-008-02-01 ","Terminación de relación laboral a petición del empleador con visto bueno con suspensión de relación laboral",6,0,20,30,0,"NO",0,"NO",0,"NO",0,56,175.7]
["MT-047-01-01 ","Resolución del pliego de peticiones con sentencia de primera instancia",6,0,10,30,0,"NO",0,"NO",0,"NO",0,46,201.97500000000002]
["MT-045-03-01 ","Registro de directivas para organizaciones sociales, fundaciones y microempresas asociativas",6,0,10,30,0,"NO",0,"NO",0,"NO",0,46,150.9]
["MRL-005-01-01","Audiencia de diálogo social en la solución de conflictos colectivos",6,0,10,0,0,"NO",0,"NO",0,"NO",0,16,167.88749999999999]
["MT-034-10-01 ","Cálculo del valor correspondiente a la jubilación patronal para trabajadores de código de trabajo en el sector público",6,0,10,30,0,"NO",0,"NO",0,"NO",0,46,91.8]
["MRL-008-02-03 ","Terminación de relación laboral a petición del empleado con visto bueno",6,0,20,30,0,"NO",0,"NO",0,"NO",0,56,167.10000000000002]
["\n MT-049-04-02","Asistencia en el proceso integral de preselección de personal para instituciones públicas y empresas privadas a través del portal Red Socio Empleo",6,0,20,30,30,"NO",0,"NO",0,"NO",0,86,462.45]
["MRL-008-02-02 ","Terminación de relación laboral a petición del empleador con visto bueno sin suspensión de relación laboral",6,0,20,30,0,"NO",0,"NO",0,"NO",0,56,178.85]
["MT-040-01-01","Autorización laboral para extranjeros para trabajar en el sector público.",6,0,10,0,0,"NO",0,"NO",0,"NO",0,16,68.711250000000007]
["MT-030-03-01 ","Atención de denuncias laborables en el sector público",6,4,10,30,30,"NO",0,"NO",0,"NO",0,80,314.98750000000001]
["MT-034-10-02 ","Cálculo del valor correspondiente a la jubilación patronal para trabajadores del servicio privado",6,0,10,0,0,"NO",0,"NO",0,"NO",0,16,91.2]
["MT-005-02-01 ","Audiencia de mediación voluntaria para la solución de conflictos individuales de trabajo",6,4,10,0,30,"NO",0,"NO",0,"NO",0,50,329.02499999999998]
["MRL-012-01-01 ","Aprobación de reglamentos internos de trabajo",6,0,10,0,0,"NO",0,"NO",0,"NO",0,16,18.000000000000004]
["MT-054-01-01 ","Recuperación de claves y modificación de correo electrónico en el Sistema Único de Trabajo",6,0,5,0,0,"NO",0,"NO",0,"NO",0,11,2.1749999999999998]
["MT-021-04-02 ","Registro de la Planificación de Capacitación del programa de Prevención de Riesgos Psicosociales",6,0,5,0,0,"NO",0,"NO",0,"NO",0,11,5.6612499999999999]
["MT-021-01-03 ","Registro de Informe anual de actividades del comité paritario",6,0,5,0,30,"NO",0,"NO",0,"NO",0,41,185.35]
["MT-021-01-04 ","Aprobación de reglamentos de higiene y seguridad en el trabajo",10,4,5,0,30,"NO",0,"NO",0,"NO",0,49,234.2]
["MT-046-01-05","Rehabilitación de personas con impedimento laboral en el servicio público a causa de inhabilidad especial por mora.",10,4,5,0,0,"NO",0,"NO",0,"NO",0,19,186.23]
["MT-021-03-02 ","Registro de Promoción y Prevención de Salud en el Trabajo",10,4,5,0,0,"NO",0,"NO",0,"NO",0,19,2.54]
["MT-049-04-03 ","Asistencia en la preselección de personal para instituciones públicas y empresas privadas a través del portal Red Socio Empleo mediante el envío de hojas de vida",10,0,10,0,0,"NO",0,"NO",0,"NO",0,20,91.2]
["MT-021-04-01","Registro de Prevención de Amenazas Naturales y Riesgos Antrópicos",10,0,5,0,0,"NO",0,"NO",0,"NO",0,15,3.16]
["N/A","Acceso a la Información Pública del Ministerio de Trabajo",10,4,5,0,0,"NO",0,"NO",0,"NO",0,19,150.30000000000001]
["MT-049-04-01","Publicación de ofertas laborales en el portal Red Socio Empleo a través de las cuentas de los empleadores",10,0,5,0,0,"NO",0,"NO",0,"NO",0,15,68.7]
["MT-044-04-01 ","Registro del pago de multas por sanciones",10,0,5,0,0,"NO",0,"NO",0,"NO",0,15,12.45]
["MT-021-01-06 ","Registro de programas de prevención de uso y consumo de drogas en espacios laborales y programa de prevención de riesgo psicosocial",10,4,5,0,0,"NO",0,"NO",0,"NO",0,19,8.1]
["MT-030-03-02 ","Atención de denuncias laborales en el sector privado",10,4,10,30,0,"NO",0,"NO",0,"NO",0,54,150.30000000000001]
["MT-021-01-02 ","Registro de organismos paritarios y sus renovaciones",10,0,10,0,30,"NO",0,"NO",0,"NO",0,50,180.9]
["MT-021-01-05 ","Registro de la declaración de los riesgos laborales y su plan de acción",10,0,10,30,0,"NO",0,"NO",0,"NO",0,50,7.58]
["\n MT-021-02-03 ","Registro de trabajadores capacitados en materia de seguridad y salud en el trabajo.",10,0,10,30,0,"NO",0,"NO",0,"NO",0,50,1.22]
["MRL-001-01-08","Emisión de oficio de validación de no tener impedimento para ejercer cargo público a la fecha",10,0,5,0,0,"NO",{"$f":"IF(H69=\"SI\",5,0)","v":0},"NO",{"$f":"IF(J69=\"SI\",10,0)","v":0},"NO",{"$f":"IF(L69=\"SI\",5,0)","v":0},{"$f":"SUM(C69:G69,I69,K69,M69)","v":15},30.9]
["MT-021-02-02","Registro de capacitaciones realizadas en materia de seguridad y salud en el trabajo",10,4,5,30,0,"NO",0,"NO",0,"NO",0,49,1.22]
["MT-044-03-11","Registro del pago de decimotercera y decimocuarta remuneración para el servicio doméstico",10,0,5,30,0,"NO",0,"NO",0,"NO",0,45,8.16]
["MT-021-02-01 ","Registro de la planificación de capacitaciones en materia de seguridad y salud en el trabajo",10,4,5,30,0,"NO",0,"NO",0,"NO",0,49,1.22]
["MT-021-03-01 ","Registro de Vigilancia de la Salud",10,4,5,30,0,"NO",0,"NO",0,"NO",0,49,1.22]
["MT-044-03-10 ","Registro del pago de Participación de Utilidades",10,0,5,30,0,"NO",0,"NO",0,"NO",0,45,8.16]
["MRL-001-01-03 ","Emisión de certificado de no tener impedimento para ejercer cargo público para extranjeros no residentes",10,4,5,30,0,"NO",0,"NO",0,"NO",0,49,93.13]
["MT-044-03-12","Registro del pago de decimocuarta remuneración",10,0,10,0,0,"NO",0,"NO",0,"NO",0,20,8.16]
["MRL-001-01-09 ","Emisión de certificado de relación de dependencia laboral con el sector público",10,4,5,0,0,"NO",0,"NO",0,"NO",0,19,2.34]
["MT-044-03-06","Registro del pago de decimotercera remuneración",10,0,5,0,0,"NO",0,"NO",0,"NO",0,15,8.16]
["MT-044-05-01 ","Registro de datos de trabajador para la vinculación laboral",10,0,5,0,0,"NO",0,"NO",0,"NO",0,15,4.72]
["MT-044-05-02 ","Registro de actas de finiquito",10,0,5,0,0,"NO",0,"NO",0,"NO",0,15,16.86]
["MRL-001-01-01","Emisión de certificado de no tener impedimento para ejercer cargo público para ecuatorianos y extranjeros residentes",10,4,5,0,0,"NO",0,"NO",0,"NO",0,19,3.15]
["SETEC-014-04-04","Ampliación por incremento de instructores y/o cambio de coordiador pedagógico bajo las mismas áreas, especialidades, cursos o perfiles",0,0,5,0,0,"NO",{"$f":"IF(H82=\"SI\",5,0)","v":0},"NO",{"$f":"IF(J82=\"SI\",10,0)","v":0},"NO",{"$f":"IF(L82=\"SI\",5,0)","v":0},5,14.35]
["SETEC-016-01-04","Emisión de credenciales de capacitador independiente",0,0,5,0,0,"NO",{"$f":"IF(H83=\"SI\",5,0)","v":0},"NO",{"$f":"IF(J83=\"SI\",10,0)","v":0},"NO",{"$f":"IF(L83=\"SI\",5,0)","v":0},5,19.75]
["SETEC-014-05-09","Solicitud de la renovación de la calificación de Instituciones de Educación Superior como Operadores de Capacitación por capacitación continua y competencias laborales",0,0,5,0,0,"NO",0,"NO",0,"NO",0,5,10.46]
["SETEC-015-01-08","Solicitud de modificación al reconocimiento de organismos evaluadores de la conformidad para brindar servicios de certificación de personas",0,0,20,0,0,"NO",0,"NO",0,"NO",0,20,44.44]
["SETEC-014-05-08","Solicitud de renovación de la calificación de Instituciones de Educación Superior como Operadores de Capacitación por competencias laborales",0,0,5,0,0,"NO",0,"NO",0,"NO",0,5,10.46]
["SETEC-014-05-04","Solicitud de renovación de la calificación de Instituciones Públicas como Operadores de Capacitación Continua",0,0,5,0,0,"NO",0,"NO",0,"NO",0,5,10.46]
["SETEC-014-05-05","Solicitud de renovación de la calificación de Instituciones Públicas como Operadores de Capacitación por competencias laborales",0,0,5,0,0,"NO",0,"NO",0,"NO",0,5,10.46]
["SETEC-014-05-06","Solicitud de renovación de la calificación deInstituciones Públicas como Operadores de Capacitación por capacitación continua y competencias laborales",0,0,5,0,0,"NO",0,"NO",0,"NO",0,5,10.46]
["SETEC-015-01-01","Reconocimiento de personas naturales como organismos evaluadores de la conformidad para brindar servicios de certificación de personas",3,0,20,0,0,"NO",0,"NO",0,"NO",0,23,149.11000000000001]
["SETEC-014-03-03","Solicitud de modificación de la calificación de Instituciones de Educación Superior como Operadores de Capacitación",3,0,10,0,0,"NO",0,"NO",0,"NO",0,13,47.08]
["SETEC-014-05-07","Solicitud de renovación de la calificación de Instituciones de Educación Superior como Operadores de Capacitación como Operadores de Capacitación Continua",3,0,5,0,0,"NO",0,"NO",0,"NO",0,8,17.96]
["SETEC-014-04-02","Ampliación por nuevos cursos e instructores por competencias laborales",3,0,10,0,0,"NO",0,"NO",0,"NO",0,13,69.959999999999994]
["SETEC-014-02-08","Calificación de Instituciones de Educación Superior como Operadores de Capacitación por competencias laborales",3,0,10,0,0,"NO",0,"NO",0,"NO",0,13,91.39]
["SETEC-014-02-05","Calificación de Instituciones Públicas como Operadores de Capacitación por competencias laborales",3,0,10,0,0,"NO",0,"NO",0,"NO",0,13,78.97]
["SETEC-015-01-06","Renovación al reconocimiento de organismos evaluadores de la conformidad de Instituciones de Educación Superior para brindar servicios de certificación de personas",3,0,10,0,0,"NO",0,"NO",0,"NO",0,13,149.11000000000001]
["SETEC-015-01-04","Renovación al reconocimiento de organismos evaluadores de la conformidad de personas naturales para brindar servicios de certificación de personas",3,0,10,0,0,"NO",0,"NO",0,"NO",0,13,149.11000000000001]
["SETEC-014-03-02","Solicitud de modificación de la calificación de Instituciones Públicas como Operadores de Capacitación",3,0,10,0,0,"NO",0,"NO",0,"NO",0,13,47.08]
["SETEC-014-05-02","Solicitud de renovación de la calificación de Personas Naturales, Personas Jurídicas y Empresas Públicas como Operadores de Capacitación por competencias laborales",3,0,5,0,0,"NO",0,"NO",0,"NO",0,8,10.46]
["SETEC-015-01-02","Reconocimiento de organismos evaluadores de la conformidad de Instituciones de Educación Superior para brindar servicios de certificación de personas",3,0,20,30,0,"NO",0,"NO",0,"NO",0,53,149.11000000000001]
["SETEC-017-01-02","Solicitud de auditoría al cumplimiento de los estándares de calificación",3,0,20,0,0,"NO",0,"NO",0,"NO",0,23,88.3]
["SETEC-017-02-02","Solicitud de auditoría al cumplimiento del sistema de gestión de certificación de personas",3,0,20,0,0,"NO",0,"NO",0,"NO",0,23,88.3]
["SETEC-017-01-03","Quejas y sugerencias sobre la prestacción de servicios de capacitación y certificación por parte de terceros",3,10,10,0,0,"NO",0,"NO",0,"NO",0,23,54.65]
["SETEC-014-02-02","Calificación de Personas Naturales, Personas Jurídicas y Empresas Públicas como Operadores de Capacitación por competencias laborales",6,0,10,0,0,"NO",0,"NO",0,"NO",0,16,220.38]
["SETEC-014-02-04","Calificación de Instituciones Públicas como Operadores de Capacitación Continua",6,0,10,0,0,"NO",0,"NO",0,"NO",0,16,79.099999999999994]
["SETEC-010-01-02","Elaborar o actualizar perfiles ocupacionales para capacitación y certificación de personas por competancias laborales",6,0,20,0,0,"NO",0,"NO",0,"NO",0,26,483.8]
["SETEC-015-01-03","Reconocimiento de organismos evaluadores de la conformidad de personas jurídicas para brindar servicios de certificación de personas",6,0,20,0,0,"NO",0,"NO",0,"NO",0,26,149.11000000000001]
["SETEC-014-03-01","Solicitud de modificación de la calificación de Personas Naturales, Personas Jurídicas y Empresas Públicas como Operadores de Capacitación",6,0,10,0,0,"NO",0,"NO",0,"NO",0,16,160.66]
["SETEC-015-01-05","Renovación al reconocimiento de organismos evaluadores de la conformidad de personas jurídicas para brindar servicios de certificación de personas",6,0,10,0,0,"NO",0,"NO",0,"NO",0,16,149.11000000000001]
["SETEC-014-02-07","Calificación de Instituciones de Educación Superior como Operadores de Capacitación Continua",6,0,10,0,0,"NO",0,"NO",0,"NO",0,16,74.44]
["SETEC-014-05-01","Solicitud de renovación de la calificación de Personas Naturales, Personas Jurídicas y Empresas Públicas como Operadores de Capacitación de Capacitación Continua",6,0,5,0,0,"NO",0,"NO",0,"NO",0,11,10.46]
["SETEC-014-02-09","Calificación de Instituciones de Educación Superior como Operadores de Capacitación por capacitación continua y competencias laborales",6,0,20,0,0,"NO",0,"NO",0,"NO",0,26,91.39]
["SETEC-016-01-02","Renovación de la calificación como capacitador independiente",6,0,20,0,0,"NO",0,"NO",0,"NO",0,26,66.180000000000007]
["SETEC-014-05-03","Solicitud de renovación de la calificación de Personas Naturales, Personas Jurídicas y Empresas Públicas como Operadores de Capacitación por capacitación continua y competencias laborales",6,0,5,0,0,"NO",0,"NO",0,"NO",0,11,10.46]
["SETEC-014-02-06","Calificación de Instituciones Públicas como Operadores de Capacitación por capacitación continua y competencias laborales",6,0,20,0,0,"NO",0,"NO",0,"NO",0,26,93.02]
["SETEC-017-03-02","Quejas y sugerencias sobre el mal uso de marca SETEC por parte de terceros",6,0,20,0,0,"NO",0,"NO",0,"NO",0,26,17.98]
["SETEC-010-02-01","Elaboración de esquemas para la certificación de personas bajo competencias laborales",6,0,20,0,0,"NO",0,"NO",0,"NO",0,26,393.8]
["SETEC-010-03-01","Elaborar instrumentos para la certificación de personas bajo competencias laborales",6,0,20,0,0,"NO",0,"NO",0,"NO",0,26,397.55]
["SETEC-014-04-03","Ampliación por nuevos cursos e instructores por capacitación continua y competencias laborales",10,0,10,0,0,"NO",0,"NO",0,"NO",0,20,78.13]
["SETEC-017-02-01","Solicitud de asesoramiento técnico para el proceso de auditoría al sistema de gestión de certificación de personas",10,0,5,0,0,"NO",0,"NO",0,"NO",0,15,28.3]
["SETEC-017-01-01","Solicitud de asesoramiento técnico para el proceso de auditoría al cumplimiento de los estándares de calificación",10,0,5,0,0,"NO",0,"NO",0,"NO",0,15,28.3]
["SETEC-014-04-01","Ampliación por nuevos cursos e instructores por capacitación continua",10,0,10,0,0,"NO",0,"NO",0,"NO",0,20,175.33]
["SETEC-012-01-01","Asesoramiento metodológico en la elaboración de diseños y estructuras curriculares",10,0,20,0,0,"NO",0,"NO",0,"NO",0,30,58.3]
["SETEC-016-01-03","Ampliación de la calificación como capacitador independiente",10,0,20,30,30,"NO",0,"NO",0,"NO",0,90,198.9]
["SETEC-015-01-09","Asistencia técnica en el proceso de reconocimiento de organismos certificadores de personas",10,0,5,0,0,"NO",0,"NO",0,"NO",0,15,23.43]
["SETEC-015-01-07","Ampliación al reconocimiento de organismos evaluadores de la conformidad para brindar servicios de certificación de personas",10,0,20,0,0,"NO",0,"NO",0,"NO",0,30,74.83]
["SETEC-014-02-01","Calificación de Personas Naturales, Personas Jurídicas y Empresas Públicas como Operadores de Capacitación de Capacitación Continua",10,0,10,0,0,"NO",0,"NO",0,"NO",0,20,212.88]
["SETEC-014-02-03","Calificación de Personas Naturales, Personas Jurídicas y Empresas Públicas como Operadores de Capacitación continua y competencias laborales",10,0,10,0,0,"NO",0,"NO",0,"NO",0,20,213.8]
["SETEC-016-01-01","Calificación como capacitador independiente",10,0,20,30,30,"NO",0,"NO",0,"NO",0,90,195.75]
["SETEC-017-03-01","Solicitud de aprobación de productos comunicacionales",10,0,5,0,0,"NO",0,"NO",0,"NO",0,15,6.55]
["SETEC-016-01-05","Asistencia técnica en el proceso de calificación como capacitador independiente",10,0,5,0,0,"NO",0,"NO",0,"NO",0,15,6.1]
["SETEC-017-03-04","Solicitud de sellado de certificados emitidos por los operadores de capacitación de capacitación y organismos evaluadores de la conformidad",10,0,5,0,0,"NO",0,"NO",0,"NO",0,15,17.600000000000001]
["SETEC-009-02-01","Consulta de análisis y estudios sobre capacitación y certificación de personas",10,0,20,0,0,"NO",0,"NO",0,"NO",0,{"$f":"SUM(C133:G133,I133,K133,M133)","v":30},39.299999999999997]